Workbook

Sheet Skema 1
A1: Region Midtjylland, somatiske sygehuse.
B2: Skema 1: Udgifter og indtægter på sygehusene/enhederne, eksklusiv omkostningssted 0001, Fælleskonto. (1.000 kr.)
A5: Sygehus | C5: 2023 | D5: 2022 | E5: 2021 | F5: 2020 | G5: Δ2022-2023 | H5: % afvigelse | I5: Begrundelse
A6: Regionshospitalet Horsens
A7: Regionshospitalet Horsens | B7: Hovedart 1: Lønninger | C7: 918942 | D7: 971980 | E7: 932588 | F7: 849016 | G7: =IF(ISERROR(C7- D7)=TRUE,"",C7 - D7) -> -53038 | H7: =IF(ISERROR((((C7- D7)/D7)*100)=TRUE),"",IF((((C7- D7)/D7)*100)<-7,FIXED(((C7- D7)/D7)*100, 1,TRUE) &"%" & "▼",IF((((C7- D7)/D7)*100)>7,FIXED(((C7- D7)/D7)*100, 1,TRUE) &"%" &"▲",FIXED(((C7- D7)/D7)*100, 1,TRUE)&"%"))) -> -5,5%
A8: Regionshospitalet Horsens | B8: Hovedart 2: Varekøb | C8: 138335 | D8: 143944 | E8: 138987 | F8: 136474 | G8: -5609 | H8: -3,9%
A9: Regionshospitalet Horsens | B9: Hovedart 4: Tjenesteydelser m.v. | C9: 65882 | D9: 87748 | E9: 93331 | F9: 75047 | G9: -21866 | H9: -24,9%▼
A10: Regionshospitalet Horsens | B10: Hovedart 5: Tilskud og overførsler | C10: 1162 | D10: 1423 | E10: 774 | F10: 711 | G10: -261 | H10: -18,3%▼
A11: Regionshospitalet Horsens | B11: Hovedart 6: Finansudgifter | G11: 0
A12: Regionshospitalet Horsens | B12: Hovedart 7: Indtægter | C12: -21765 | D12: -21367 | E12: -19422 | F12: -23732 | G12: -398 | H12: 1,9%
A13: Regionshospitalet Horsens | B13: Hovedart 8: Finansindtægter | G13: 0
A14: Regionshospitalet Horsens | B14: Hovedart 9: Interne udgifter og indtægter | C14: 110331 | D14: 103797 | E14: 100380 | F14: 89103 | G14: 6534 | H14: 6,3%
A15: Regionshospitalet Horsens | B15: I alt | C15: =SUMIFS((C7:C14),(A7:A14),A15) -> 1212887 | D15: =SUMIFS((D7:D14),(A7:A14),A15) -> 1287525 | E15: =SUMIFS((E7:E14),(A7:A14),A15) -> 1246638 | F15: =SUMIFS((F7:F14),(A7:A14),A15) -> 1126619 | G15: -74638 | H15: -5,8%
A16: Regionshospitalet Gødstrup | G16: 0
A17: Regionshospitalet Gødstrup | B17: Hovedart 1: Lønninger | C17: 2010553 | D17: 2075623 | E17: 1977527 | F17: 1825829 | G17: -65070 | H17: -3,1%
A18: Regionshospitalet Gødstrup | B18: Hovedart 2: Varekøb | C18: 274006 | D18: 310955 | E18: 327526 | F18: 293822 | G18: -36949 | H18: -11,9%▼
A19: Regionshospitalet Gødstrup | B19: Hovedart 4: Tjenesteydelser m.v. | C19: 226091 | D19: 347405 | E19: 306631 | F19: 226909 | G19: -121314 | H19: -34,9%▼
A20: Regionshospitalet Gødstrup | B20: Hovedart 5: Tilskud og overførsler | C20: 2598 | D20: 820 | E20: -125 | F20: 0 | G20: 1778 | H20: 216,8%▲
A21: Regionshospitalet Gødstrup | B21: Hovedart 6: Finansudgifter | G21: 0
A22: Regionshospitalet Gødstrup | B22: Hovedart 7: Indtægter | C22: -106845 | D22: -105855 | E22: -117595 | F22: -149248 | G22: -990 | H22: 0,9%
A23: Regionshospitalet Gødstrup | B23: Hovedart 8: Finansindtægter | G23: 0
A24: Regionshospitalet Gødstrup | B24: Hovedart 9: Interne udgifter og indtægter | C24: 455232 | D24: 466214 | E24: 495304 | F24: 464170 | G24: -10982 | H24: -2,4%
A25: Regionshospitalet Gødstrup | B25: I alt | C25: =SUMIFS((C7:C24),(A7:A24),A25) -> 2861635 | D25: =SUMIFS((D7:D24),(A7:A24),A25) -> 3095162 | E25: =SUMIFS((E7:E24),(A7:A24),A25) -> 2989268 | F25: =SUMIFS((F7:F24),(A7:A24),A25) -> 2661482 | G25: -233527 | H25: -7,5%▼
A26: Hospitalsenhed Midt | G26: 0
A27: Hospitalsenhed Midt | B27: Hovedart 1: Lønninger | C27: 2246601 | D27: 2250138 | E27: 2178039 | F27: 2015310 | G27: -3537 | H27: -0,2%
A28: Hospitalsenhed Midt | B28: Hovedart 2: Varekøb | C28: 344303 | D28: 350652 | E28: 326743 | F28: 305353 | G28: -6349 | H28: -1,8%
A29: Hospitalsenhed Midt | B29: Hovedart 4: Tjenesteydelser m.v. | C29: 231374 | D29: 289418 | E29: 265173 | F29: 223517 | G29: -58044 | H29: -20,1%▼
A30: Hospitalsenhed Midt | B30: Hovedart 5: Tilskud og overførsler | C30: 2143 | D30: 2305 | E30: 1256 | F30: 1262 | G30: -162 | H30: -7,0%▼
A31: Hospitalsenhed Midt | B31: Hovedart 6: Finansudgifter | G31: 0
A32: Hospitalsenhed Midt | B32: Hovedart 7: Indtægter | C32: -229028 | D32: -248604 | E32: -220355 | F32: -202710 | G32: 19576 | H32: -7,9%▼
A33: Hospitalsenhed Midt | B33: Hovedart 8: Finansindtægter | G33: 0
A34: Hospitalsenhed Midt | B34: Hovedart 9: Interne udgifter og indtægter | C34: 181784 | D34: 190207 | E34: 172287 | F34: 145256 | G34: -8423 | H34: -4,4%
A35: Hospitalsenhed Midt | B35: I alt | C35: =SUMIFS((C7:C34),(A7:A34),A35) -> 2777177 | D35: =SUMIFS((D7:D34),(A7:A34),A35) -> 2834116 | E35: =SUMIFS((E7:E34),(A7:A34),A35) -> 2723143 | F35: =SUMIFS((F7:F34),(A7:A34),A35) -> 2487988 | G35: -56939 | H35: -2,0%
A36: Århus Universitetshospital | G36: 0
A37: Århus Universitetshospital | B37: Hovedart 1: Lønninger | C37: 5681603 | D37: 5582887 | E37: 5393366 | F37: 5051137 | G37: 98716 | H37: 1,8%
A38: Århus Universitetshospital | B38: Hovedart 2: Varekøb | C38: 1338732 | D38: 1347020 | E38: 1222596 | F38: 1197666 | G38: -8288 | H38: -0,6%
A39: Århus Universitetshospital | B39: Hovedart 4: Tjenesteydelser m.v. | C39: 1188379 | D39: 1171526 | E39: 1110773 | F39: 1002139 | G39: =IF(ISERROR(C39- D39)=TRUE,"",C39 - D39) -> 16853 | H39: =IF(ISERROR((((C39- D39)/D39)*100)=TRUE),"",IF((((C39- D39)/D39)*100)<-7,FIXED(((C39- D39)/D39)*100, 1,TRUE) &"%" & "▼",IF((((C39- D39)/D39)*100)>7,FIXED(((C39- D39)/D39)*100, 1,TRUE) &"%" &"▲",FIXED(((C39- D39)/D39)*100, 1,TRUE)&"%"))) -> 1,4%
A40: Århus Universitetshospital | B40: Hovedart 5: Tilskud og overførsler | C40: 1530 | D40: -2885 | E40: 1055 | F40: 1072 | G40: 4415 | H40: -153,0%▼
A41: Århus Universitetshospital | B41: Hovedart 6: Finansudgifter | G41: 0
A42: Århus Universitetshospital | B42: Hovedart 7: Indtægter | C42: -1831603 | D42: -1706869 | E42: -1549970 | F42: -1453603 | G42: -124734 | H42: 7,3%▲
A43: Århus Universitetshospital | B43: Hovedart 8: Finansindtægter | G43: 0
A44: Århus Universitetshospital | B44: Hovedart 9: Interne udgifter og indtægter | C44: 1909964 | D44: 1867764 | E44: 1671680 | F44: 1562736 | G44: 42200 | H44: 2,3%
A45: Århus Universitetshospital | B45: I alt | C45: =SUMIFS((C7:C44),(A7:A44),A45) -> 8288605 | D45: =SUMIFS((D7:D44),(A7:A44),A45) -> 8259443 | E45: =SUMIFS((E7:E44),(A7:A44),A45) -> 7849500 | F45: =SUMIFS((F7:F44),(A7:A44),A45) -> 7361147 | G45: 29162 | H45: 0,4%
A46: Regionshospitalet Randers | G46: 0
A47: Regionshospitalet Randers | B47: Hovedart 1: Lønninger | C47: 1016307 | D47: 1051033 | E47: 1010071.596 | F47: 910481 | G47: -34726 | H47: -3,3%
A48: Regionshospitalet Randers | B48: Hovedart 2: Varekøb | C48: 156367 | D48: 165171 | E48: 157288.712 | F48: 149608 | G48: -8804 | H48: -5,3%
A49: Regionshospitalet Randers | B49: Hovedart 4: Tjenesteydelser m.v. | C49: 105733 | D49: 114067 | E49: 113115.715 | F49: 79446 | G49: -8334 | H49: -7,3%▼
A50: Regionshospitalet Randers | B50: Hovedart 5: Tilskud og overførsler | C50: 1705 | D50: 2437 | E50: 1052.606 | F50: 1005 | G50: -732 | H50: -30,0%▼
A51: Regionshospitalet Randers | B51: Hovedart 6: Finansudgifter | G51: 0
A52: Regionshospitalet Randers | B52: Hovedart 7: Indtægter | C52: -33772 | D52: -29626 | E52: -28116.795 | F52: -26535 | G52: -4146 | H52: 14,0%▲
A53: Regionshospitalet Randers | B53: Hovedart 8: Finansindtægter | G53: 0
A54: Regionshospitalet Randers | B54: Hovedart 9: Interne udgifter og indtægter | C54: 92279 | D54: 87220 | E54: 81909.762 | F54: 82127 | G54: 5059 | H54: 5,8%
A55: Regionshospitalet Randers | B55: I alt | C55: =SUMIFS((C7:C54),(A7:A54),A55) -> 1338619 | D55: =SUMIFS((D7:D54),(A7:A54),A55) -> 1390302 | E55: =SUMIFS((E7:E54),(A7:A54),A55) -> 1335321.596 | F55: =SUMIFS((F7:F54),(A7:A54),A55) -> 1196132 | G55: -51683 | H55: -3,7%
A56: Regionshospitalet Hammel Neurocenter | G56: 0
A57: Regionshospitalet Hammel Neurocenter | B57: Hovedart 1: Lønninger | G57: 0
A58: Regionshospitalet Hammel Neurocenter | B58: Hovedart 2: Varekøb | G58: 0
A59: Regionshospitalet Hammel Neurocenter | B59: Hovedart 4: Tjenesteydelser m.v. | G59: 0
A60: Regionshospitalet Hammel Neurocenter | B60: Hovedart 5: Tilskud og overførsler | G60: 0
A61: Regionshospitalet Hammel Neurocenter | B61: Hovedart 6: Finansudgifter | G61: 0
A62: Regionshospitalet Hammel Neurocenter | B62: Hovedart 7: Indtægter | G62: 0
A63: Regionshospitalet Hammel Neurocenter | B63: Hovedart 8: Finansindtægter | G63: 0
A64: Regionshospitalet Hammel Neurocenter | B64: Hovedart 9: Interne udgifter og indtægter | G64: 0
A65: Regionshospitalet Hammel Neurocenter | B65: I alt | C65: =SUMIFS((C7:C64),(A7:A64),A65) -> 0 | D65: =SUMIFS((D7:D64),(A7:A64),A65) -> 0 | E65: =SUMIFS((E7:E64),(A7:A64),A65) -> 0 | F65: =SUMIFS((F7:F64),(A7:A64),A65) -> 0 | G65: 0
A66: Øvrige i Region Midtjylland | G66: 0
A67: Øvrige i Region Midtjylland | B67: Hovedart 1: Lønninger | G67: 0
A68: Øvrige i Region Midtjylland | B68: Hovedart 2: Varekøb | G68: 0
A69: Øvrige i Region Midtjylland | B69: Hovedart 4: Tjenesteydelser m.v. | G69: 0
A70: Øvrige i Region Midtjylland | B70: Hovedart 5: Tilskud og overførsler | G70: 0
A71: Øvrige i Region Midtjylland | B71: Hovedart 6: Finansudgifter | G71: =IF(ISERROR(C71- D71)=TRUE,"",C71 - D71) -> 0 | H71: =IF(ISERROR((((C71- D71)/D71)*100)=TRUE),"",IF((((C71- D71)/D71)*100)<-7,FIXED(((C71- D71)/D71)*100, 1,TRUE) &"%" & "▼",IF((((C71- D71)/D71)*100)>7,FIXED(((C71- D71)/D71)*100, 1,TRUE) &"%" &"▲",FIXED(((C71- D71)/D71)*100, 1,TRUE)&"%"))) -> 
A72: Øvrige i Region Midtjylland | B72: Hovedart 7: Indtægter | G72: 0
A73: Øvrige i Region Midtjylland | B73: Hovedart 8: Finansindtægter | G73: 0
A74: Øvrige i Region Midtjylland | B74: Hovedart 9: Interne udgifter og indtægter | G74: 0
A75: Øvrige i Region Midtjylland | B75: I alt | C75: =SUMIFS((C7:C74),(A7:A74),A75) -> 0 | D75: =SUMIFS((D7:D74),(A7:A74),A75) -> 0 | E75: =SUMIFS((E7:E74),(A7:A74),A75) -> 0 | F75: =SUMIFS((F7:F74),(A7:A74),A75) -> 0 | G75: 0
A76: Ikke fordelte udgifter og indtægter | G76: 0
A77: Ikke fordelte udgifter og indtægter | B77: Hovedart 1: Lønninger | G77: 0
A78: Ikke fordelte udgifter og indtægter | B78: Hovedart 2: Varekøb | G78: 0
A79: Ikke fordelte udgifter og indtægter | B79: Hovedart 4: Tjenesteydelser m.v. | G79: 0
A80: Ikke fordelte udgifter og indtægter | B80: Hovedart 5: Tilskud og overførsler | G80: 0
A81: Ikke fordelte udgifter og indtægter | B81: Hovedart 6: Finansudgifter | G81: 0
A82: Ikke fordelte udgifter og indtægter | B82: Hovedart 7: Indtægter | G82: 0
A83: Ikke fordelte udgifter og indtægter | B83: Hovedart 8: Finansindtægter | G83: 0
A84: Ikke fordelte udgifter og indtægter | B84: Hovedart 9: Interne udgifter og indtægter | G84: 0
A85: Ikke fordelte udgifter og indtægter | B85: I alt | C85: =SUMIFS((C7:C84),(A7:A84),A85) -> 0 | D85: =SUMIFS((D7:D84),(A7:A84),A85) -> 0 | E85: =SUMIFS((E7:E84),(A7:A84),A85) -> 0 | F85: =SUMIFS((F7:F84),(A7:A84),A85) -> 0 | G85: 0

Sheet Skema 2
A1: Region Midtjylland, somatiske sygehuse.
B2: Skema 2: Fællesudgifter og -indtægter vedrørende sygehusene. (1.000 kr.)
A5: Sygehus | C5: 2023 | D5: 2022 | E5: 2021 | F5: 2020 | G5: Δ2022-2023 | H5: % afvigelse | I5: Begrundelse
A6: Regionshospitalet Horsens
A7: Regionshospitalet Horsens | B7: Hovedart 1: Lønninger | C7: 45959 | D7: 46799 | E7: 40740 | F7: 40398 | G7: =IF(ISERROR(C7- D7)=TRUE,"",C7 - D7) -> -840 | H7: =IF(ISERROR((((C7- D7)/D7)*100)=TRUE),"",IF((((C7- D7)/D7)*100)<-7,FIXED(((C7- D7)/D7)*100, 1,TRUE) &"%" & "▼",IF((((C7- D7)/D7)*100)>7,FIXED(((C7- D7)/D7)*100, 1,TRUE) &"%" &"▲",FIXED(((C7- D7)/D7)*100, 1,TRUE)&"%"))) -> -1,8%
A8: Regionshospitalet Horsens | B8: Hovedart 2: Varekøb | C8: 185038 | D8: 185287 | E8: 182634 | F8: 181188 | G8: -249 | H8: -0,1%
A9: Regionshospitalet Horsens | B9: Hovedart 4: Tjenesteydelser m.v. | C9: 34780 | D9: 32434 | E9: 28989 | F9: 28053 | G9: 2346 | H9: 7,2%▲
A10: Regionshospitalet Horsens | B10: Hovedart 5: Tilskud og overførsler | C10: -36 | G10: -36
A11: Regionshospitalet Horsens | B11: Hovedart 6: Finansudgifter | G11: 0
A12: Regionshospitalet Horsens | B12: Hovedart 7: Indtægter | C12: -17135 | D12: -12080 | E12: -6239 | F12: -5964 | G12: -5055 | H12: 41,8%▲
A13: Regionshospitalet Horsens | B13: Hovedart 8: Finansindtægter | G13: 0
A14: Regionshospitalet Horsens | B14: Hovedart 9: Interne udgifter og indtægter | C14: -211123 | D14: -211742 | E14: -204744 | F14: -199167 | G14: 619 | H14: -0,3%
A15: Regionshospitalet Horsens | B15: I alt | C15: =SUMIFS((C7:C14),(A7:A14),A15) -> 37483 | D15: =SUMIFS((D7:D14),(A7:A14),A15) -> 40698 | E15: =SUMIFS((E7:E14),(A7:A14),A15) -> 41380 | F15: =SUMIFS((F7:F14),(A7:A14),A15) -> 44508 | G15: -3215 | H15: -7,9%▼
A16: Regionshospitalet Gødstrup | G16: 0
A17: Regionshospitalet Gødstrup | B17: Hovedart 1: Lønninger | C17: 100545 | D17: 105313 | E17: 90715 | F17: 87166 | G17: -4768 | H17: -4,5%
A18: Regionshospitalet Gødstrup | B18: Hovedart 2: Varekøb | C18: 404809 | D18: 416928 | E18: 407396 | F18: 390609 | G18: -12119 | H18: -2,9%
A19: Regionshospitalet Gødstrup | B19: Hovedart 4: Tjenesteydelser m.v. | C19: 76468 | D19: 71208 | E19: 64548 | F19: 60530 | G19: 5260 | H19: 7,4%▲
A20: Regionshospitalet Gødstrup | B20: Hovedart 5: Tilskud og overførsler | C20: -79 | D20: 1 | G20: -80 | H20: -8000,0%▼
A21: Regionshospitalet Gødstrup | B21: Hovedart 6: Finansudgifter | G21: 0
A22: Regionshospitalet Gødstrup | B22: Hovedart 7: Indtægter | C22: -37487 | D22: -27184 | E22: -13891 | F22: -12869 | G22: -10303 | H22: 37,9%▲
A23: Regionshospitalet Gødstrup | B23: Hovedart 8: Finansindtægter | G23: 0
A24: Regionshospitalet Gødstrup | B24: Hovedart 9: Interne udgifter og indtægter | C24: -461875 | D24: -476333 | E24: -455851 | F24: -429741 | G24: 14458 | H24: -3,0%
A25: Regionshospitalet Gødstrup | B25: I alt | C25: =SUMIFS((C7:C24),(A7:A24),A25) -> 82381 | D25: =SUMIFS((D7:D24),(A7:A24),A25) -> 89933 | E25: =SUMIFS((E7:E24),(A7:A24),A25) -> 92917 | F25: =SUMIFS((F7:F24),(A7:A24),A25) -> 95695 | G25: -7552 | H25: -8,4%▼
A26: Hospitalsenhed Midt | G26: 0
A27: Hospitalsenhed Midt | B27: Hovedart 1: Lønninger | C27: 111131 | D27: 109260 | E27: 93780 | F27: 93908 | G27: 1871 | H27: 1,7%
A28: Hospitalsenhed Midt | B28: Hovedart 2: Varekøb | C28: 447430 | D28: 431768 | E28: 419949 | F28: 420979 | G28: 15662 | H28: 3,6%
A29: Hospitalsenhed Midt | B29: Hovedart 4: Tjenesteydelser m.v. | C29: 84244 | D29: 75634 | E29: 66729 | F29: 65212 | G29: 8610 | H29: 11,4%▲
A30: Hospitalsenhed Midt | B30: Hovedart 5: Tilskud og overførsler | C30: -87 | D30: 1 | G30: -88 | H30: -8800,0%▼
A31: Hospitalsenhed Midt | B31: Hovedart 6: Finansudgifter | G31: 0
A32: Hospitalsenhed Midt | B32: Hovedart 7: Indtægter | C32: -41434 | D32: -28203 | E32: -14361 | F32: -13864 | G32: -13231 | H32: 46,9%▲
A33: Hospitalsenhed Midt | B33: Hovedart 8: Finansindtægter | G33: 0
A34: Hospitalsenhed Midt | B34: Hovedart 9: Interne udgifter og indtægter | C34: -510452 | D34: -494348 | E34: -471300 | F34: -462980 | G34: -16104 | H34: 3,3%
A35: Hospitalsenhed Midt | B35: I alt | C35: =SUMIFS((C7:C34),(A7:A34),A35) -> 90832 | D35: =SUMIFS((D7:D34),(A7:A34),A35) -> 94112 | E35: =SUMIFS((E7:E34),(A7:A34),A35) -> 94797 | F35: =SUMIFS((F7:F34),(A7:A34),A35) -> 103255 | G35: -3280 | H35: -3,5%
A36: Århus Universitetshospital | G36: 0
A37: Århus Universitetshospital | B37: Hovedart 1: Lønninger | C37: 311377 | D37: 293578 | E37: 251144 | F37: 248862 | G37: 17799 | H37: 6,1%
A38: Århus Universitetshospital | B38: Hovedart 2: Varekøb | C38: 1253643 | D38: 1161551 | E38: 1126305 | F38: 1117857 | G38: 92092 | H38: 7,9%▲
A39: Århus Universitetshospital | B39: Hovedart 4: Tjenesteydelser m.v. | C39: 238820 | D39: 208974 | E39: 178744 | F39: 172817 | G39: =IF(ISERROR(C39- D39)=TRUE,"",C39 - D39) -> 29846 | H39: =IF(ISERROR((((C39- D39)/D39)*100)=TRUE),"",IF((((C39- D39)/D39)*100)<-7,FIXED(((C39- D39)/D39)*100, 1,TRUE) &"%" & "▼",IF((((C39- D39)/D39)*100)>7,FIXED(((C39- D39)/D39)*100, 1,TRUE) &"%" &"▲",FIXED(((C39- D39)/D39)*100, 1,TRUE)&"%"))) -> 14,3%▲
A40: Århus Universitetshospital | B40: Hovedart 5: Tilskud og overførsler | C40: -245 | D40: 3 | G40: -248 | H40: -8266,7%▼
A41: Århus Universitetshospital | B41: Hovedart 6: Finansudgifter | G41: 0
A42: Århus Universitetshospital | B42: Hovedart 7: Indtægter | C42: -116092 | D42: -75781 | E42: -105656 | F42: -94091 | G42: -40311 | H42: 53,2%▲
A43: Århus Universitetshospital | B43: Hovedart 8: Finansindtægter | G43: 0
A44: Århus Universitetshospital | B44: Hovedart 9: Interne udgifter og indtægter | C44: -1430369 | D44: -1328274 | E44: -1137366 | F44: -1111401 | G44: -102095 | H44: 7,7%▲
A45: Århus Universitetshospital | B45: I alt | C45: =SUMIFS((C7:C44),(A7:A44),A45) -> 257134 | D45: =SUMIFS((D7:D44),(A7:A44),A45) -> 260051 | E45: =SUMIFS((E7:E44),(A7:A44),A45) -> 313171 | F45: =SUMIFS((F7:F44),(A7:A44),A45) -> 334044 | G45: -2917 | H45: -1,1%
A46: Regionshospitalet Randers | G46: 0
A47: Regionshospitalet Randers | B47: Hovedart 1: Lønninger | C47: 51536 | D47: 51084 | E47: 44127.566 | F47: 43254 | G47: 452 | H47: 0,9%
A48: Regionshospitalet Randers | B48: Hovedart 2: Varekøb | C48: 207492 | D48: 201788 | E48: 197770.722 | F48: 193917 | G48: 5704 | H48: 2,8%
A49: Regionshospitalet Randers | B49: Hovedart 4: Tjenesteydelser m.v. | C49: 39000 | D49: 35478 | E49: 31354.986 | F49: 30037 | G49: 3522 | H49: 9,9%▲
A50: Regionshospitalet Randers | B50: Hovedart 5: Tilskud og overførsler | C50: -41 | D50: 1 | G50: -42 | H50: -4200,0%▼
A51: Regionshospitalet Randers | B51: Hovedart 6: Finansudgifter | G51: 0
A52: Regionshospitalet Randers | B52: Hovedart 7: Indtægter | C52: -19215 | D52: -13186 | E52: -6757.324 | F52: -6386 | G52: -6029 | H52: 45,7%▲
A53: Regionshospitalet Randers | B53: Hovedart 8: Finansindtægter | G53: 0
A54: Regionshospitalet Randers | B54: Hovedart 9: Interne udgifter og indtægter | C54: -236742 | D54: -231127 | E54: -221766.288 | F54: -213247 | G54: -5615 | H54: 2,4%
A55: Regionshospitalet Randers | B55: I alt | C55: =SUMIFS((C7:C54),(A7:A54),A55) -> 42030 | D55: =SUMIFS((D7:D54),(A7:A54),A55) -> 44038 | E55: =SUMIFS((E7:E54),(A7:A54),A55) -> 44729.662 | F55: =SUMIFS((F7:F54),(A7:A54),A55) -> 47575 | G55: -2008 | H55: -4,6%
A56: Regionshospitalet Hammel Neurocenter | G56: 0
A57: Regionshospitalet Hammel Neurocenter | B57: Hovedart 1: Lønninger | G57: 0
A58: Regionshospitalet Hammel Neurocenter | B58: Hovedart 2: Varekøb | G58: 0
A59: Regionshospitalet Hammel Neurocenter | B59: Hovedart 4: Tjenesteydelser m.v. | G59: 0
A60: Regionshospitalet Hammel Neurocenter | B60: Hovedart 5: Tilskud og overførsler | G60: 0
A61: Regionshospitalet Hammel Neurocenter | B61: Hovedart 6: Finansudgifter | G61: 0
A62: Regionshospitalet Hammel Neurocenter | B62: Hovedart 7: Indtægter | G62: 0
A63: Regionshospitalet Hammel Neurocenter | B63: Hovedart 8: Finansindtægter | G63: 0
A64: Regionshospitalet Hammel Neurocenter | B64: Hovedart 9: Interne udgifter og indtægter | G64: 0
A65: Regionshospitalet Hammel Neurocenter | B65: I alt | C65: =SUMIFS((C7:C64),(A7:A64),A65) -> 0 | D65: =SUMIFS((D7:D64),(A7:A64),A65) -> 0 | E65: =SUMIFS((E7:E64),(A7:A64),A65) -> 0 | F65: =SUMIFS((F7:F64),(A7:A64),A65) -> 0 | G65: 0
A66: Øvrige i Region Midtjylland | G66: 0
A67: Øvrige i Region Midtjylland | B67: Hovedart 1: Lønninger | G67: 0
A68: Øvrige i Region Midtjylland | B68: Hovedart 2: Varekøb | G68: 0
A69: Øvrige i Region Midtjylland | B69: Hovedart 4: Tjenesteydelser m.v. | G69: 0
A70: Øvrige i Region Midtjylland | B70: Hovedart 5: Tilskud og overførsler | G70: 0
A71: Øvrige i Region Midtjylland | B71: Hovedart 6: Finansudgifter | G71: =IF(ISERROR(C71- D71)=TRUE,"",C71 - D71) -> 0 | H71: =IF(ISERROR((((C71- D71)/D71)*100)=TRUE),"",IF((((C71- D71)/D71)*100)<-7,FIXED(((C71- D71)/D71)*100, 1,TRUE) &"%" & "▼",IF((((C71- D71)/D71)*100)>7,FIXED(((C71- D71)/D71)*100, 1,TRUE) &"%" &"▲",FIXED(((C71- D71)/D71)*100, 1,TRUE)&"%"))) -> 
A72: Øvrige i Region Midtjylland | B72: Hovedart 7: Indtægter | G72: 0
A73: Øvrige i Region Midtjylland | B73: Hovedart 8: Finansindtægter | G73: 0
A74: Øvrige i Region Midtjylland | B74: Hovedart 9: Interne udgifter og indtægter | G74: 0
A75: Øvrige i Region Midtjylland | B75: I alt | C75: =SUMIFS((C7:C74),(A7:A74),A75) -> 0 | D75: =SUMIFS((D7:D74),(A7:A74),A75) -> 0 | E75: =SUMIFS((E7:E74),(A7:A74),A75) -> 0 | F75: =SUMIFS((F7:F74),(A7:A74),A75) -> 0 | G75: 0
A76: Ikke fordelte udgifter og indtægter | G76: 0
A77: Ikke fordelte udgifter og indtægter | B77: Hovedart 1: Lønninger | C77: 370710.22 | D77: 354777 | E77: 335166 | F77: 283048 | G77: 15933.22 | H77: 4,5%
A78: Ikke fordelte udgifter og indtægter | B78: Hovedart 2: Varekøb | C78: 45285.406 | D78: 663881 | E78: 780398 | F78: 504938 | G78: -618595.594 | H78: -93,2%▼
A79: Ikke fordelte udgifter og indtægter | B79: Hovedart 4: Tjenesteydelser m.v. | C79: 1568700.574 | D79: 3191017 | E79: 8850881 | F79: 2028977 | G79: -1622316.426 | H79: -50,8%▼
A80: Ikke fordelte udgifter og indtægter | B80: Hovedart 5: Tilskud og overførsler | C80: 222759.632 | D80: 187676 | E80: 193589.606 | F80: 154022 | G80: 35083.632 | H80: 18,7%▲
A81: Ikke fordelte udgifter og indtægter | B81: Hovedart 6: Finansudgifter | G81: 0
A82: Ikke fordelte udgifter og indtægter | B82: Hovedart 7: Indtægter | C82: -515951.956 | D82: -3108987 | E82: -8914726 | F82: -502610 | G82: 2593035.044 | H82: -83,4%▼
A83: Ikke fordelte udgifter og indtægter | B83: Hovedart 8: Finansindtægter | F83: -658400 | G83: 0
A84: Ikke fordelte udgifter og indtægter | B84: Hovedart 9: Interne udgifter og indtægter | C84: 10658.343 | D84: -2597 | E84: -18544 | F84: 17145 | G84: 13255.343 | H84: -510,4%▼
A85: Ikke fordelte udgifter og indtægter | B85: I alt | C85: =SUMIFS((C7:C84),(A7:A84),A85) -> 1702162.219 | D85: =SUMIFS((D7:D84),(A7:A84),A85) -> 1285767 | E85: =SUMIFS((E7:E84),(A7:A84),A85) -> 1226764.606 | F85: =SUMIFS((F7:F84),(A7:A84),A85) -> 1827120 | G85: 416395.219 | H85: 32,4%▲

Sheet Skema 3
A1: Region Midtjylland, somatiske sygehuse.
B2: Skema 3:Regionale fællesudgifter og -indtægter. (1.000 kr.)
A5: Sygehus | C5: 2023 | D5: 2022 | E5: 2021 | F5: 2020 | G5: Δ2022-2023 | H5: % afvigelse | I5: Begrundelse
A6: Regionshospitalet Horsens
A7: Regionshospitalet Horsens | B7: 1.70.50: Andel af fællesudgifter | C7: 25837 | D7: 27759 | E7: 24511 | F7: 24736 | G7: =IF(ISERROR(C7- D7)=TRUE,"",C7 - D7) -> -1922 | H7: =IF(ISERROR((((C7- D7)/D7)*100)=TRUE),"",IF((((C7- D7)/D7)*100)<-7,FIXED(((C7- D7)/D7)*100, 1,TRUE) &"%" & "▼",IF((((C7- D7)/D7)*100)>7,FIXED(((C7- D7)/D7)*100, 1,TRUE) &"%" &"▲",FIXED(((C7- D7)/D7)*100, 1,TRUE)&"%"))) -> -6,9%
A8: Regionshospitalet Horsens | B8: 1.60.40: Andel af central administration af sundhed (til og med 2019) | G8: 0
A9: Regionshospitalet Horsens | B9: 1.60.41: Andel af øvrige udgifter og indtægter | G9: 0
A10: Regionshospitalet Horsens | B10: 1.50.33: Andel af central administration af sundhed (ekskl. psykiatri) | G10: 0
A11: Regionshospitalet Horsens | B11: 1.50.35: Administration af det psykiatriske område (kun central del) | G11: 0
A12: Regionshospitalet Horsens | B12: I alt | C12: =SUMIFS((C7:C11),(A7:A11),A12) -> 25837 | D12: =SUMIFS((D7:D11),(A7:A11),A12) -> 27759 | E12: =SUMIFS((E7:E11),(A7:A11),A12) -> 24511 | F12: =SUMIFS((F7:F11),(A7:A11),A12) -> 24736 | G12: -1922 | H12: -6,9%
A13: Regionshospitalet Gødstrup | G13: 0
A14: Regionshospitalet Gødstrup | B14: 1.70.50: Andel af fællesudgifter | C14: 56524 | D14: 62467 | E14: 54579 | F14: 53373 | G14: -5943 | H14: -9,5%▼
A15: Regionshospitalet Gødstrup | B15: 1.60.40: Andel af central administration af sundhed (til og med 2019) | G15: 0
A16: Regionshospitalet Gødstrup | B16: 1.60.41: Andel af øvrige udgifter og indtægter | G16: 0
A17: Regionshospitalet Gødstrup | B17: 1.50.33: Andel af central administration af sundhed (ekskl. psykiatri) | G17: 0
A18: Regionshospitalet Gødstrup | B18: 1.50.35: Administration af det psykiatriske område (kun central del) | G18: 0
A19: Regionshospitalet Gødstrup | B19: I alt | C19: =SUMIFS((C7:C18),(A7:A18),A19) -> 56524 | D19: =SUMIFS((D7:D18),(A7:A18),A19) -> 62467 | E19: =SUMIFS((E7:E18),(A7:A18),A19) -> 54579 | F19: =SUMIFS((F7:F18),(A7:A18),A19) -> 53373 | G19: -5943 | H19: -9,5%▼
A20: Hospitalsenhed Midt | G20: 0
A21: Hospitalsenhed Midt | B21: 1.70.50: Andel af fællesudgifter | C21: 62475 | D21: 64809 | E21: 56423 | F21: 57501 | G21: -2334 | H21: -3,6%
A22: Hospitalsenhed Midt | B22: 1.60.40: Andel af central administration af sundhed (til og med 2019) | G22: 0
A23: Hospitalsenhed Midt | B23: 1.60.41: Andel af øvrige udgifter og indtægter | G23: 0
A24: Hospitalsenhed Midt | B24: 1.50.33: Andel af central administration af sundhed (ekskl. psykiatri) | G24: 0
A25: Hospitalsenhed Midt | B25: 1.50.35: Administration af det psykiatriske område (kun central del) | G25: 0
A26: Hospitalsenhed Midt | B26: I alt | C26: =SUMIFS((C7:C25),(A7:A25),A26) -> 62475 | D26: =SUMIFS((D7:D25),(A7:A25),A26) -> 64809 | E26: =SUMIFS((E7:E25),(A7:A25),A26) -> 56423 | F26: =SUMIFS((F7:F25),(A7:A25),A26) -> 57501 | G26: -2334 | H26: -3,6%
A27: Århus Universitetshospital | G27: 0
A28: Århus Universitetshospital | B28: 1.70.50: Andel af fællesudgifter | C28: 175048 | D28: 174138 | E28: 151100 | F28: 152382 | G28: 910 | H28: 0,5%
A29: Århus Universitetshospital | B29: 1.60.40: Andel af central administration af sundhed (til og med 2019) | G29: 0
A30: Århus Universitetshospital | B30: 1.60.41: Andel af øvrige udgifter og indtægter | G30: 0
A31: Århus Universitetshospital | B31: 1.50.33: Andel af central administration af sundhed (ekskl. psykiatri) | G31: 0
A32: Århus Universitetshospital | B32: 1.50.35: Administration af det psykiatriske område (kun central del) | G32: 0
A33: Århus Universitetshospital | B33: I alt | C33: =SUMIFS((C7:C32),(A7:A32),A33) -> 175048 | D33: =SUMIFS((D7:D32),(A7:A32),A33) -> 174138 | E33: =SUMIFS((E7:E32),(A7:A32),A33) -> 151100 | F33: =SUMIFS((F7:F32),(A7:A32),A33) -> 152382 | G33: 910 | H33: 0,5%
A34: Regionshospitalet Randers | G34: 0
A35: Regionshospitalet Randers | B35: 1.70.50: Andel af fællesudgifter | C35: 28972 | D35: 30301 | E35: 26549 | F35: 26485 | G35: -1329 | H35: -4,4%
A36: Regionshospitalet Randers | B36: 1.60.40: Andel af central administration af sundhed (til og med 2019) | G36: 0
A37: Regionshospitalet Randers | B37: 1.60.41: Andel af øvrige udgifter og indtægter | G37: 0
A38: Regionshospitalet Randers | B38: 1.50.33: Andel af central administration af sundhed (ekskl. psykiatri) | G38: 0
A39: Regionshospitalet Randers | B39: 1.50.35: Administration af det psykiatriske område (kun central del) | G39: =IF(ISERROR(C39- D39)=TRUE,"",C39 - D39) -> 0 | H39: =IF(ISERROR((((C39- D39)/D39)*100)=TRUE),"",IF((((C39- D39)/D39)*100)<-7,FIXED(((C39- D39)/D39)*100, 1,TRUE) &"%" & "▼",IF((((C39- D39)/D39)*100)>7,FIXED(((C39- D39)/D39)*100, 1,TRUE) &"%" &"▲",FIXED(((C39- D39)/D39)*100, 1,TRUE)&"%"))) -> 
A40: Regionshospitalet Randers | B40: I alt | C40: =SUMIFS((C7:C39),(A7:A39),A40) -> 28972 | D40: =SUMIFS((D7:D39),(A7:A39),A40) -> 30301 | E40: =SUMIFS((E7:E39),(A7:A39),A40) -> 26549 | F40: =SUMIFS((F7:F39),(A7:A39),A40) -> 26485 | G40: -1329 | H40: -4,4%
A41: Regionshospitalet Hammel Neurocenter | G41: 0
A42: Regionshospitalet Hammel Neurocenter | B42: 1.70.50: Andel af fællesudgifter | G42: 0
A43: Regionshospitalet Hammel Neurocenter | B43: 1.60.40: Andel af central administration af sundhed (til og med 2019) | G43: 0
A44: Regionshospitalet Hammel Neurocenter | B44: 1.60.41: Andel af øvrige udgifter og indtægter | G44: 0
A45: Regionshospitalet Hammel Neurocenter | B45: 1.50.33: Andel af central administration af sundhed (ekskl. psykiatri) | G45: 0
A46: Regionshospitalet Hammel Neurocenter | B46: 1.50.35: Administration af det psykiatriske område (kun central del) | G46: 0
A47: Regionshospitalet Hammel Neurocenter | B47: I alt | C47: =SUMIFS((C7:C46),(A7:A46),A47) -> 0 | D47: =SUMIFS((D7:D46),(A7:A46),A47) -> 0 | E47: =SUMIFS((E7:E46),(A7:A46),A47) -> 0 | F47: =SUMIFS((F7:F46),(A7:A46),A47) -> 0 | G47: 0
A48: Øvrige i Region Midtjylland | G48: 0
A49: Øvrige i Region Midtjylland | B49: 1.70.50: Andel af fællesudgifter | G49: 0
A50: Øvrige i Region Midtjylland | B50: 1.60.40: Andel af central administration af sundhed (til og med 2019) | G50: 0
A51: Øvrige i Region Midtjylland | B51: 1.60.41: Andel af øvrige udgifter og indtægter | G51: 0
A52: Øvrige i Region Midtjylland | B52: 1.50.33: Andel af central administration af sundhed (ekskl. psykiatri) | G52: 0
A53: Øvrige i Region Midtjylland | B53: 1.50.35: Administration af det psykiatriske område (kun central del) | G53: 0
A54: Øvrige i Region Midtjylland | B54: I alt | C54: =SUMIFS((C7:C53),(A7:A53),A54) -> 0 | D54: =SUMIFS((D7:D53),(A7:A53),A54) -> 0 | E54: =SUMIFS((E7:E53),(A7:A53),A54) -> 0 | F54: =SUMIFS((F7:F53),(A7:A53),A54) -> 0 | G54: 0
A55: Ikke fordelte udgifter og indtægter | G55: 0
A56: Ikke fordelte udgifter og indtægter | B56: 1.70.50: Andel af fællesudgifter | C56: 171243.811 | D56: 168045 | E56: 165562 | F56: 161137 | G56: 3198.811 | H56: 1,9%
A57: Ikke fordelte udgifter og indtægter | B57: 1.60.40: Andel af central administration af sundhed (til og med 2019) | G57: 0
A58: Ikke fordelte udgifter og indtægter | B58: 1.60.41: Andel af øvrige udgifter og indtægter | C58: 36787.869 | D58: 41438 | E58: 40012 | F58: 42122 | G58: -4650.131 | H58: -11,2%▼
A59: Ikke fordelte udgifter og indtægter | B59: 1.50.33: Andel af central administration af sundhed (ekskl. psykiatri) | G59: 0
A60: Ikke fordelte udgifter og indtægter | B60: 1.50.35: Administration af det psykiatriske område (kun central del) | G60: 0
A61: Ikke fordelte udgifter og indtægter | B61: I alt | C61: =SUMIFS((C7:C60),(A7:A60),A61) -> 208031.68 | D61: =SUMIFS((D7:D60),(A7:A60),A61) -> 209483 | E61: =SUMIFS((E7:E60),(A7:A60),A61) -> 205574 | F61: =SUMIFS((F7:F60),(A7:A60),A61) -> 203259 | G61: -1451.32 | H61: -0,7%

Sheet Skema 4
A1: Region Midtjylland, somatiske sygehuse.
B2: Skema 4: Udgifter og indtægter til og fra psykiatriske afdelinger konteret på somatiske sygehuse. (1.000 kr.)
A5: Sygehus | C5: 2023 | D5: 2022 | E5: 2021 | F5: 2020 | G5: Δ2022-2023 | H5: % afvigelse | I5: Begrundelse
A6: Regionshospitalet Horsens
A7: Regionshospitalet Horsens | B7: Korrektion | G7: =IF(ISERROR(C7- D7)=TRUE,"",C7 - D7) -> 0 | H7: =IF(ISERROR((((C7- D7)/D7)*100)=TRUE),"",IF((((C7- D7)/D7)*100)<-7,FIXED(((C7- D7)/D7)*100, 1,TRUE) &"%" & "▼",IF((((C7- D7)/D7)*100)>7,FIXED(((C7- D7)/D7)*100, 1,TRUE) &"%" &"▲",FIXED(((C7- D7)/D7)*100, 1,TRUE)&"%"))) -> 
A8: Regionshospitalet Horsens | B8: Lønudg. på psyk. afd.,somatiske sygehuse | G8: 0
A9: Regionshospitalet Horsens | B9: Øvrige udg. til psyk. afd.,somatiske sygehuse | G9: 0
A10: Regionshospitalet Horsens | B10: I alt | C10: =SUMIFS((C7:C9),(A7:A9),A10) -> 0 | D10: =SUMIFS((D7:D9),(A7:A9),A10) -> 0 | E10: =SUMIFS((E7:E9),(A7:A9),A10) -> 0 | F10: =SUMIFS((F7:F9),(A7:A9),A10) -> 0 | G10: 0
A11: Regionshospitalet Gødstrup | G11: 0
A12: Regionshospitalet Gødstrup | B12: Korrektion | G12: 0
A13: Regionshospitalet Gødstrup | B13: Lønudg. på psyk. afd.,somatiske sygehuse | G13: 0
A14: Regionshospitalet Gødstrup | B14: Øvrige udg. til psyk. afd.,somatiske sygehuse | G14: 0
A15: Regionshospitalet Gødstrup | B15: I alt | C15: =SUMIFS((C7:C14),(A7:A14),A15) -> 0 | D15: =SUMIFS((D7:D14),(A7:A14),A15) -> 0 | E15: =SUMIFS((E7:E14),(A7:A14),A15) -> 0 | F15: =SUMIFS((F7:F14),(A7:A14),A15) -> 0 | G15: 0
A16: Hospitalsenhed Midt | G16: 0
A17: Hospitalsenhed Midt | B17: Korrektion | G17: 0
A18: Hospitalsenhed Midt | B18: Lønudg. på psyk. afd.,somatiske sygehuse | G18: 0
A19: Hospitalsenhed Midt | B19: Øvrige udg. til psyk. afd.,somatiske sygehuse | G19: 0
A20: Hospitalsenhed Midt | B20: I alt | C20: =SUMIFS((C7:C19),(A7:A19),A20) -> 0 | D20: =SUMIFS((D7:D19),(A7:A19),A20) -> 0 | E20: =SUMIFS((E7:E19),(A7:A19),A20) -> 0 | F20: =SUMIFS((F7:F19),(A7:A19),A20) -> 0 | G20: 0
A21: Århus Universitetshospital | G21: 0
A22: Århus Universitetshospital | B22: Korrektion | G22: 0
A23: Århus Universitetshospital | B23: Lønudg. på psyk. afd.,somatiske sygehuse | G23: 0
A24: Århus Universitetshospital | B24: Øvrige udg. til psyk. afd.,somatiske sygehuse | G24: 0
A25: Århus Universitetshospital | B25: I alt | C25: =SUMIFS((C7:C24),(A7:A24),A25) -> 0 | D25: =SUMIFS((D7:D24),(A7:A24),A25) -> 0 | E25: =SUMIFS((E7:E24),(A7:A24),A25) -> 0 | F25: =SUMIFS((F7:F24),(A7:A24),A25) -> 0 | G25: 0
A26: Regionshospitalet Randers | G26: 0
A27: Regionshospitalet Randers | B27: Korrektion | G27: 0
A28: Regionshospitalet Randers | B28: Lønudg. på psyk. afd.,somatiske sygehuse | G28: 0
A29: Regionshospitalet Randers | B29: Øvrige udg. til psyk. afd.,somatiske sygehuse | G29: 0
A30: Regionshospitalet Randers | B30: I alt | C30: =SUMIFS((C7:C29),(A7:A29),A30) -> 0 | D30: =SUMIFS((D7:D29),(A7:A29),A30) -> 0 | E30: =SUMIFS((E7:E29),(A7:A29),A30) -> 0 | F30: =SUMIFS((F7:F29),(A7:A29),A30) -> 0 | G30: 0
A31: Regionshospitalet Hammel Neurocenter | G31: 0
A32: Regionshospitalet Hammel Neurocenter | B32: Korrektion | G32: 0
A33: Regionshospitalet Hammel Neurocenter | B33: Lønudg. på psyk. afd.,somatiske sygehuse | G33: 0
A34: Regionshospitalet Hammel Neurocenter | B34: Øvrige udg. til psyk. afd.,somatiske sygehuse | G34: 0
A35: Regionshospitalet Hammel Neurocenter | B35: I alt | C35: =SUMIFS((C7:C34),(A7:A34),A35) -> 0 | D35: =SUMIFS((D7:D34),(A7:A34),A35) -> 0 | E35: =SUMIFS((E7:E34),(A7:A34),A35) -> 0 | F35: =SUMIFS((F7:F34),(A7:A34),A35) -> 0 | G35: 0
A36: Øvrige i Region Midtjylland | G36: 0
A37: Øvrige i Region Midtjylland | B37: Korrektion | G37: 0
A38: Øvrige i Region Midtjylland | B38: Lønudg. på psyk. afd.,somatiske sygehuse | G38: 0
A39: Øvrige i Region Midtjylland | B39: Øvrige udg. til psyk. afd.,somatiske sygehuse | G39: 0
A40: Øvrige i Region Midtjylland | B40: I alt | C40: =SUMIFS((C7:C39),(A7:A39),A40) -> 0 | D40: =SUMIFS((D7:D39),(A7:A39),A40) -> 0 | E40: =SUMIFS((E7:E39),(A7:A39),A40) -> 0 | F40: =SUMIFS((F7:F39),(A7:A39),A40) -> 0 | G40: 0
A41: Ikke fordelte udgifter og indtægter | G41: 0
A42: Ikke fordelte udgifter og indtægter | B42: Korrektion | G42: 0
A43: Ikke fordelte udgifter og indtægter | B43: Lønudg. på psyk. afd.,somatiske sygehuse | G43: 0
A44: Ikke fordelte udgifter og indtægter | B44: Øvrige udg. til psyk. afd.,somatiske sygehuse | G44: 0
A45: Ikke fordelte udgifter og indtægter | B45: I alt | C45: =SUMIFS((C7:C44),(A7:A44),A45) -> 0 | D45: =SUMIFS((D7:D44),(A7:A44),A45) -> 0 | E45: =SUMIFS((E7:E44),(A7:A44),A45) -> 0 | F45: =SUMIFS((F7:F44),(A7:A44),A45) -> 0 | G45: 0

Sheet Skema 5
A1: Region Midtjylland, somatiske sygehuse.
B2: Skema 5: Leasing- og huslejeudgifter. (1.000 kr.)
A5: Sygehus | C5: 2023 | D5: 2022 | E5: 2021 | F5: 2020 | G5: Δ2022-2023 | H5: % afvigelse | I5: Begrundelse
A6: Regionshospitalet Horsens
A7: Regionshospitalet Horsens | B7: Andre udgifter | G7: =IF(ISERROR(C7- D7)=TRUE,"",C7 - D7) -> 0 | H7: =IF(ISERROR((((C7- D7)/D7)*100)=TRUE),"",IF((((C7- D7)/D7)*100)<-7,FIXED(((C7- D7)/D7)*100, 1,TRUE) &"%" & "▼",IF((((C7- D7)/D7)*100)>7,FIXED(((C7- D7)/D7)*100, 1,TRUE) &"%" &"▲",FIXED(((C7- D7)/D7)*100, 1,TRUE)&"%"))) -> 
A8: Regionshospitalet Horsens | B8: Leasing- og lejeudgifter | C8: 3215 | D8: 2395 | E8: 2559 | F8: 250 | G8: 820 | H8: 34,2%▲
A9: Regionshospitalet Horsens | B9: Huslejeudgifter | E9: 0 | F9: 181 | G9: 0
A10: Regionshospitalet Horsens | B10: I alt | C10: =SUMIFS((C7:C9),(A7:A9),A10) -> 3215 | D10: =SUMIFS((D7:D9),(A7:A9),A10) -> 2395 | E10: =SUMIFS((E7:E9),(A7:A9),A10) -> 2559 | F10: =SUMIFS((F7:F9),(A7:A9),A10) -> 431 | G10: 820 | H10: 34,2%▲
A11: Regionshospitalet Gødstrup | G11: 0
A12: Regionshospitalet Gødstrup | B12: Andre udgifter | G12: 0
A13: Regionshospitalet Gødstrup | B13: Leasing- og lejeudgifter | C13: 2285 | D13: 2064 | E13: 832 | F13: 1738 | G13: 221 | H13: 10,7%▲
A14: Regionshospitalet Gødstrup | B14: Huslejeudgifter | C14: 14023 | D14: 6085 | E14: 840 | F14: 899 | G14: 7938 | H14: 130,5%▲
A15: Regionshospitalet Gødstrup | B15: I alt | C15: =SUMIFS((C7:C14),(A7:A14),A15) -> 16308 | D15: =SUMIFS((D7:D14),(A7:A14),A15) -> 8149 | E15: =SUMIFS((E7:E14),(A7:A14),A15) -> 1672 | F15: =SUMIFS((F7:F14),(A7:A14),A15) -> 2637 | G15: 8159 | H15: 100,1%▲
A16: Hospitalsenhed Midt | G16: 0
A17: Hospitalsenhed Midt | B17: Andre udgifter | G17: 0
A18: Hospitalsenhed Midt | B18: Leasing- og lejeudgifter | C18: 1994 | D18: 1619 | E18: 1506 | F18: 1619 | G18: 375 | H18: 23,2%▲
A19: Hospitalsenhed Midt | B19: Huslejeudgifter | C19: 1937 | D19: 1504 | E19: 1750 | F19: 1965 | G19: 433 | H19: 28,8%▲
A20: Hospitalsenhed Midt | B20: I alt | C20: =SUMIFS((C7:C19),(A7:A19),A20) -> 3931 | D20: =SUMIFS((D7:D19),(A7:A19),A20) -> 3123 | E20: =SUMIFS((E7:E19),(A7:A19),A20) -> 3256 | F20: =SUMIFS((F7:F19),(A7:A19),A20) -> 3584 | G20: 808 | H20: 25,9%▲
A21: Århus Universitetshospital | G21: 0
A22: Århus Universitetshospital | B22: Andre udgifter | G22: 0
A23: Århus Universitetshospital | B23: Leasing- og lejeudgifter | C23: 14657 | D23: 2919 | E23: 9625 | F23: 9278 | G23: 11738 | H23: 402,1%▲
A24: Århus Universitetshospital | B24: Huslejeudgifter | C24: 40331 | D24: 32997 | E24: 30325 | F24: 31134 | G24: 7334 | H24: 22,2%▲
A25: Århus Universitetshospital | B25: I alt | C25: =SUMIFS((C7:C24),(A7:A24),A25) -> 54988 | D25: =SUMIFS((D7:D24),(A7:A24),A25) -> 35916 | E25: =SUMIFS((E7:E24),(A7:A24),A25) -> 39950 | F25: =SUMIFS((F7:F24),(A7:A24),A25) -> 40412 | G25: 19072 | H25: 53,1%▲
A26: Regionshospitalet Randers | G26: 0
A27: Regionshospitalet Randers | B27: Andre udgifter | G27: 0
A28: Regionshospitalet Randers | B28: Leasing- og lejeudgifter | G28: 0
A29: Regionshospitalet Randers | B29: Huslejeudgifter | C29: 31 | D29: 34 | E29: 45 | F29: 181 | G29: -3 | H29: -8,8%▼
A30: Regionshospitalet Randers | B30: I alt | C30: =SUMIFS((C7:C29),(A7:A29),A30) -> 31 | D30: =SUMIFS((D7:D29),(A7:A29),A30) -> 34 | E30: =SUMIFS((E7:E29),(A7:A29),A30) -> 45 | F30: =SUMIFS((F7:F29),(A7:A29),A30) -> 181 | G30: -3 | H30: -8,8%▼
A31: Regionshospitalet Hammel Neurocenter | G31: 0
A32: Regionshospitalet Hammel Neurocenter | B32: Andre udgifter | G32: 0
A33: Regionshospitalet Hammel Neurocenter | B33: Leasing- og lejeudgifter | G33: 0
A34: Regionshospitalet Hammel Neurocenter | B34: Huslejeudgifter | G34: 0
A35: Regionshospitalet Hammel Neurocenter | B35: I alt | C35: =SUMIFS((C7:C34),(A7:A34),A35) -> 0 | D35: =SUMIFS((D7:D34),(A7:A34),A35) -> 0 | E35: =SUMIFS((E7:E34),(A7:A34),A35) -> 0 | F35: =SUMIFS((F7:F34),(A7:A34),A35) -> 0 | G35: 0
A36: Øvrige i Region Midtjylland | G36: 0
A37: Øvrige i Region Midtjylland | B37: Andre udgifter | G37: 0
A38: Øvrige i Region Midtjylland | B38: Leasing- og lejeudgifter | G38: 0
A39: Øvrige i Region Midtjylland | B39: Huslejeudgifter | G39: 0
A40: Øvrige i Region Midtjylland | B40: I alt | C40: =SUMIFS((C7:C39),(A7:A39),A40) -> 0 | D40: =SUMIFS((D7:D39),(A7:A39),A40) -> 0 | E40: =SUMIFS((E7:E39),(A7:A39),A40) -> 0 | F40: =SUMIFS((F7:F39),(A7:A39),A40) -> 0 | G40: 0
A41: Ikke fordelte udgifter og indtægter | G41: 0
A42: Ikke fordelte udgifter og indtægter | B42: Andre udgifter | G42: 0
A43: Ikke fordelte udgifter og indtægter | B43: Leasing- og lejeudgifter | C43: 46996 | D43: 40846 | E43: 151822 | F43: 183559 | G43: 6150 | H43: 15,1%▲
A44: Ikke fordelte udgifter og indtægter | B44: Huslejeudgifter | G44: 0
A45: Ikke fordelte udgifter og indtægter | B45: I alt | C45: =SUMIFS((C7:C44),(A7:A44),A45) -> 46996 | D45: =SUMIFS((D7:D44),(A7:A44),A45) -> 40846 | E45: =SUMIFS((E7:E44),(A7:A44),A45) -> 151822 | F45: =SUMIFS((F7:F44),(A7:A44),A45) -> 183559 | G45: 6150 | H45: 15,1%▲

Sheet Skema 6
A1: Region Midtjylland, somatiske sygehuse.
B2: Skema 6: Udgifter til andet end patientbehandling. (1.000 kr.)
A5: Sygehus | C5: 2023 | D5: 2022 | E5: 2021 | F5: 2020 | G5: Δ2022-2023 | H5: % afvigelse | I5: Begrundelse
A6: Regionshospitalet Horsens
A7: Regionshospitalet Horsens | B7: Skema 6.1: Center for voldsramte (Bispebjerg) | G7: =IF(ISERROR(C7- D7)=TRUE,"",C7 - D7) -> 0 | H7: =IF(ISERROR((((C7- D7)/D7)*100)=TRUE),"",IF((((C7- D7)/D7)*100)<-7,FIXED(((C7- D7)/D7)*100, 1,TRUE) &"%" & "▼",IF((((C7- D7)/D7)*100)>7,FIXED(((C7- D7)/D7)*100, 1,TRUE) &"%" &"▲",FIXED(((C7- D7)/D7)*100, 1,TRUE)&"%"))) -> 
A8: Regionshospitalet Horsens | B8: Skema 6.2: Ventilatørbistand i hjemmet, respiratorpatienter | G8: 0
A9: Regionshospitalet Horsens | B9: Skema 6.3: Blodprøvetagning i eget hjem | C9: 955 | D9: 958 | E9: 913 | F9: 934 | G9: -3 | H9: -0,3%
A10: Regionshospitalet Horsens | B10: Skema 6.4: Psykinfo + pårørende | G10: 0
A11: Regionshospitalet Horsens | B11: Skema 6.5: Leveret udstyr til patienter i eget hjem, ilt og sonderemedier | C11: 4678 | D11: 4514 | E11: 3557 | F11: 3627 | G11: 164 | H11: 3,6%
A12: Regionshospitalet Horsens | B12: Skema 6.6: Montebello (Nordsjællands Hospitaler) | G12: 0
A13: Regionshospitalet Horsens | B13: Skema 6.7: Satspulje korrektioner mellem år | G13: 0
A14: Regionshospitalet Horsens | B14: Skema 6.8: Klinisk farmakologisk rådgivning af praksissektoren | G14: 0
A15: Regionshospitalet Horsens | B15: Skema 6.9: Tandregulering ifm. operation | G15: 0
A16: Regionshospitalet Horsens | B16: Skema 6.10: Giftlinjen | G16: 0
A17: Regionshospitalet Horsens | B17: Skema 6.11: Tjenestemandspensioner | G17: 0
A18: Regionshospitalet Horsens | B18: Skema 6.12: Art 4.6 Betalinger til staten | G18: 0
A19: Regionshospitalet Horsens | B19: Skema 6.13: Art 4.7 Betalinger til kommuner | C19: 2030 | D19: 1183 | E19: 1014 | F19: 556 | G19: 847 | H19: 71,6%▲
A20: Regionshospitalet Horsens | B20: Skema 6.14: Art 4.8 Betalinger til andre regioner | C20: 400 | D20: 447 | E20: 438 | G20: -47 | H20: -10,5%▼
A21: Regionshospitalet Horsens | B21: Skema 6.15: Art 7.6 Betalinger fra staten | G21: 0
A22: Regionshospitalet Horsens | B22: Skema 6.16: Art 7.7 Betalinger fra kommuner | C22: -3170 | D22: -2508 | E22: -2646 | F22: -2567 | G22: -662 | H22: 26,4%▲
A23: Regionshospitalet Horsens | B23: Skema 6.17: Art 7.8 Betalinger fra andre regioner | G23: 0
A24: Regionshospitalet Horsens | B24: Skema 6.18: Betalinger til selvejende, private og udenlandske sygehuse | G24: 0
A25: Regionshospitalet Horsens | B25: Skema 6.19: Dækningsafgift/ejendomsskat | C25: 3232 | D25: 3224 | E25: 3234 | F25: 3266 | G25: 8 | H25: 0,2%
A26: Regionshospitalet Horsens | B26: Skema 6.20: Forsikringer/erstatninger | C26: 3800 | D26: 3213 | E26: 3554 | F26: 3740 | G26: 587 | H26: 18,3%▲
A27: Regionshospitalet Horsens | B27: Skema 6.21: Vederlagsfri Lab. –ydelser og andre ydelser til praksissektoren | C27: 29442 | D27: 27757 | E27: 26887 | F27: 24943 | G27: 1685 | H27: 6,1%
A28: Regionshospitalet Horsens | B28: Skema 6.22: Patienttransport | C28: 456 | D28: 470 | E28: 488 | F28: 442 | G28: -14 | H28: -3,0%
A29: Regionshospitalet Horsens | B29: Skema 6.23: Serviceydelser til/fra andre institutioner eller sygehuse udenfor regionen | G29: 0
A30: Regionshospitalet Horsens | B30: Skema 6.24: Udgifter til eksternt finansierede forskning | G30: 0
A31: Regionshospitalet Horsens | B31: Skema 6.25: Forebyggelse rettet mod praksissektoren og kommuner | G31: 0
A32: Regionshospitalet Horsens | B32: Skema 6.26: Praksisreservelæger | C32: 14529 | D32: 12939 | E32: 14294 | F32: 11669 | G32: 1590 | H32: 12,3%▲
A33: Regionshospitalet Horsens | B33: Skema 6.27: Præhospital | C33: 9213 | D33: 9755 | E33: 10042 | F33: 10255 | G33: -542 | H33: -5,6%
A34: Regionshospitalet Horsens | B34: Skema 6.28: Udgifter til Danske Regioner (Kontigent, MedCom, Fællesproj.) | G34: 0
A35: Regionshospitalet Horsens | B35: Skema 6.29: Hospice | C35: 824 | D35: 805 | E35: 783 | F35: 708 | G35: 19 | H35: 2,4%
A36: Regionshospitalet Horsens | B36: Skema 6.30: Konsulenter(Praksis) | C36: 385 | D36: 377 | E36: 357 | F36: 270 | G36: 8 | H36: 2,1%
A37: Regionshospitalet Horsens | B37: Skema 6.31: Videnskabsetisk Komité | G37: 0
A38: Regionshospitalet Horsens | B38: Skema 6.32: Tolkebistand | C38: 492 | D38: 457 | E38: 393 | F38: 491 | G38: 35 | H38: 7,7%▲
A39: Regionshospitalet Horsens | B39: Skema 6.33: Dansk Center for Partikelterapi | G39: 0
A40: Regionshospitalet Horsens | B40: Skema 6.34: Politisk organisation – overførte udgifter fra funktion 4.10.01, 4.10.02 og 4.10.04 | G40: 0
A41: Regionshospitalet Horsens | B41: Skema 6.35: Øvrige udgifter, Region Sjælland | G41: 0
A42: Regionshospitalet Horsens | B42: Skema 6.36: Sundhedsydelser ifm. specialsektor | G42: 0
A43: Regionshospitalet Horsens | B43: Skema 6.37: Udgifter til primær sundhed fra skema 2 | G43: 0
A44: Regionshospitalet Horsens | B44: Skema 6.38: Udgifter til primær sundhed fra skema 3 | G44: 0
A45: Regionshospitalet Horsens | B45: Skema 6.39: Særlige udgifter ifm. COVID-19 | C45: 2363 | D45: 69499 | E45: 113540 | F45: 40510 | G45: -67136 | H45: -96,6%▼
A46: Regionshospitalet Horsens | B46: Skema 6.40: Udleveret udstyr/tilbehør ifm. cochlear implantater | G46: 0
A47: Regionshospitalet Horsens | B47: Skema 6.41: Luxturna-behandling, Rigshospitalet | G47: 0
A48: Regionshospitalet Horsens | B48: Skema 6.42: Udleveret medicin | C48: 16353 | D48: 16596 | E48: 16393 | G48: -243 | H48: -1,5%
A49: Regionshospitalet Horsens | B49: Skema 6.43: Udgifter ifm. sundhedsklynger | G49: 0
A50: Regionshospitalet Horsens | B50: Skema 6.44: Ukrainske patienter under særlov eller asyl | G50: 0
A51: Regionshospitalet Horsens | B51: Skema 6.45: Udgifter ifm. de særlige pladser i psykiatrien | G51: 0
A52: Regionshospitalet Horsens | B52: Skema 6.46: Sikringsafdelingen, Region Sjælland | G52: 0
A53: Regionshospitalet Horsens | B53: Skema 6.47: Øvrige (Kan kun benyttes efter aftale med Sundhedsdatastyrelsen) | G53: 0
A54: Regionshospitalet Horsens | B54: Lukkede poster (må kun bruges af Sundhedsdatastyrelsen) | G54: 0
A55: Regionshospitalet Horsens | B55: I alt | C55: =SUMIFS((C7:C54),(A7:A54),A55) -> 85982 | D55: =SUMIFS((D7:D54),(A7:A54),A55) -> 149686 | E55: =SUMIFS((E7:E54),(A7:A54),A55) -> 193241 | F55: =SUMIFS((F7:F54),(A7:A54),A55) -> 98844 | G55: -63704 | H55: -42,6%▼
A56: Regionshospitalet Gødstrup | G56: 0
A57: Regionshospitalet Gødstrup | B57: Skema 6.1: Center for voldsramte (Bispebjerg) | G57: 0
A58: Regionshospitalet Gødstrup | B58: Skema 6.2: Ventilatørbistand i hjemmet, respiratorpatienter | G58: 0
A59: Regionshospitalet Gødstrup | B59: Skema 6.3: Blodprøvetagning i eget hjem | C59: 856 | D59: 1760 | E59: 1680 | F59: 1597 | G59: -904 | H59: -51,4%▼
A60: Regionshospitalet Gødstrup | B60: Skema 6.4: Psykinfo + pårørende | G60: 0
A61: Regionshospitalet Gødstrup | B61: Skema 6.5: Leveret udstyr til patienter i eget hjem, ilt og sonderemedier | C61: 5647 | D61: 4937 | E61: 3941 | F61: 3885 | G61: 710 | H61: 14,4%▲
A62: Regionshospitalet Gødstrup | B62: Skema 6.6: Montebello (Nordsjællands Hospitaler) | G62: 0
A63: Regionshospitalet Gødstrup | B63: Skema 6.7: Satspulje korrektioner mellem år | G63: 0
A64: Regionshospitalet Gødstrup | B64: Skema 6.8: Klinisk farmakologisk rådgivning af praksissektoren | G64: 0
A65: Regionshospitalet Gødstrup | B65: Skema 6.9: Tandregulering ifm. operation | D65: 5 | E65: 0 | F65: 1 | G65: -5 | H65: -100,0%▼
A66: Regionshospitalet Gødstrup | B66: Skema 6.10: Giftlinjen | G66: 0
A67: Regionshospitalet Gødstrup | B67: Skema 6.11: Tjenestemandspensioner | G67: 0
A68: Regionshospitalet Gødstrup | B68: Skema 6.12: Art 4.6 Betalinger til staten | G68: 0
A69: Regionshospitalet Gødstrup | B69: Skema 6.13: Art 4.7 Betalinger til kommuner | C69: 2419 | D69: 2640 | E69: 2876 | F69: 872 | G69: -221 | H69: -8,4%▼
A70: Regionshospitalet Gødstrup | B70: Skema 6.14: Art 4.8 Betalinger til andre regioner | C70: 1733 | D70: 2053 | E70: 1501 | F70: 1552 | G70: -320 | H70: -15,6%▼
A71: Regionshospitalet Gødstrup | B71: Skema 6.15: Art 7.6 Betalinger fra staten | C71: -650 | D71: -436 | E71: -419 | F71: -209 | G71: =IF(ISERROR(C71- D71)=TRUE,"",C71 - D71) -> -214 | H71: =IF(ISERROR((((C71- D71)/D71)*100)=TRUE),"",IF((((C71- D71)/D71)*100)<-7,FIXED(((C71- D71)/D71)*100, 1,TRUE) &"%" & "▼",IF((((C71- D71)/D71)*100)>7,FIXED(((C71- D71)/D71)*100, 1,TRUE) &"%" &"▲",FIXED(((C71- D71)/D71)*100, 1,TRUE)&"%"))) -> 49,1%▲
A72: Regionshospitalet Gødstrup | B72: Skema 6.16: Art 7.7 Betalinger fra kommuner | C72: -1515 | D72: -1229 | E72: -2237 | F72: -1229 | G72: -286 | H72: 23,3%▲
A73: Regionshospitalet Gødstrup | B73: Skema 6.17: Art 7.8 Betalinger fra andre regioner | C73: -1848 | D73: -2722 | E73: -939 | F73: -299 | G73: 874 | H73: -32,1%▼
A74: Regionshospitalet Gødstrup | B74: Skema 6.18: Betalinger til selvejende, private og udenlandske sygehuse | G74: 0
A75: Regionshospitalet Gødstrup | B75: Skema 6.19: Dækningsafgift/ejendomsskat | C75: 1351 | D75: 4924 | E75: 6587 | F75: 6532 | G75: -3573 | H75: -72,6%▼
A76: Regionshospitalet Gødstrup | B76: Skema 6.20: Forsikringer/erstatninger | C76: 5573 | D76: 3581 | E76: 6364 | F76: 4652 | G76: 1992 | H76: 55,6%▲
A77: Regionshospitalet Gødstrup | B77: Skema 6.21: Vederlagsfri Lab. –ydelser og andre ydelser til praksissektoren | C77: 63597 | D77: 67015 | E77: 42750 | F77: 56439 | G77: -3418 | H77: -5,1%
A78: Regionshospitalet Gødstrup | B78: Skema 6.22: Patienttransport | C78: 78 | D78: 395 | E78: 38 | F78: 23 | G78: -317 | H78: -80,3%▼
A79: Regionshospitalet Gødstrup | B79: Skema 6.23: Serviceydelser til/fra andre institutioner eller sygehuse udenfor regionen | G79: 0
A80: Regionshospitalet Gødstrup | B80: Skema 6.24: Udgifter til eksternt finansierede forskning | G80: 0
A81: Regionshospitalet Gødstrup | B81: Skema 6.25: Forebyggelse rettet mod praksissektoren og kommuner | C81: 7783 | D81: 20090 | E81: 6630 | F81: 7297 | G81: -12307 | H81: -61,3%▼
A82: Regionshospitalet Gødstrup | B82: Skema 6.26: Praksisreservelæger | C82: 19225 | D82: 18906 | E82: 15027 | F82: 14545 | G82: 319 | H82: 1,7%
A83: Regionshospitalet Gødstrup | B83: Skema 6.27: Præhospital | C83: 10024 | D83: 11589 | E83: 11620 | F83: 11200 | G83: -1565 | H83: -13,5%▼
A84: Regionshospitalet Gødstrup | B84: Skema 6.28: Udgifter til Danske Regioner (Kontigent, MedCom, Fællesproj.) | G84: 0
A85: Regionshospitalet Gødstrup | B85: Skema 6.29: Hospice | G85: 0
A86: Regionshospitalet Gødstrup | B86: Skema 6.30: Konsulenter(Praksis) | C86: 4548 | D86: 4382 | E86: 4327 | F86: 4269 | G86: 166 | H86: 3,8%
A87: Regionshospitalet Gødstrup | B87: Skema 6.31: Videnskabsetisk Komité | G87: 0
A88: Regionshospitalet Gødstrup | B88: Skema 6.32: Tolkebistand | C88: 821 | D88: 631 | E88: 723 | F88: 762 | G88: 190 | H88: 30,1%▲
A89: Regionshospitalet Gødstrup | B89: Skema 6.33: Dansk Center for Partikelterapi | G89: 0
A90: Regionshospitalet Gødstrup | B90: Skema 6.34: Politisk organisation – overførte udgifter fra funktion 4.10.01, 4.10.02 og 4.10.04 | G90: 0
A91: Regionshospitalet Gødstrup | B91: Skema 6.35: Øvrige udgifter, Region Sjælland | G91: 0
A92: Regionshospitalet Gødstrup | B92: Skema 6.36: Sundhedsydelser ifm. specialsektor | G92: 0
A93: Regionshospitalet Gødstrup | B93: Skema 6.37: Udgifter til primær sundhed fra skema 2 | G93: 0
A94: Regionshospitalet Gødstrup | B94: Skema 6.38: Udgifter til primær sundhed fra skema 3 | G94: 0
A95: Regionshospitalet Gødstrup | B95: Skema 6.39: Særlige udgifter ifm. COVID-19 | C95: 4744 | D95: 130026 | E95: 194024 | F95: 112869 | G95: -125282 | H95: -96,4%▼
A96: Regionshospitalet Gødstrup | B96: Skema 6.40: Udleveret udstyr/tilbehør ifm. cochlear implantater | G96: 0
A97: Regionshospitalet Gødstrup | B97: Skema 6.41: Luxturna-behandling, Rigshospitalet | G97: 0
A98: Regionshospitalet Gødstrup | B98: Skema 6.42: Udleveret medicin | C98: 145096 | D98: 144920 | E98: 177806 | G98: 176 | H98: 0,1%
A99: Regionshospitalet Gødstrup | B99: Skema 6.43: Udgifter ifm. sundhedsklynger | G99: 0
A100: Regionshospitalet Gødstrup | B100: Skema 6.44: Ukrainske patienter under særlov eller asyl | G100: 0
A101: Regionshospitalet Gødstrup | B101: Skema 6.45: Udgifter ifm. de særlige pladser i psykiatrien | G101: 0
A102: Regionshospitalet Gødstrup | B102: Skema 6.46: Sikringsafdelingen, Region Sjælland | G102: 0
A103: Regionshospitalet Gødstrup | B103: Skema 6.47: Øvrige (Kan kun benyttes efter aftale med Sundhedsdatastyrelsen) | E103: 6922 | G103: 0
A104: Regionshospitalet Gødstrup | B104: Lukkede poster (må kun bruges af Sundhedsdatastyrelsen) | G104: 0
A105: Regionshospitalet Gødstrup | B105: I alt | C105: =SUMIFS((C7:C104),(A7:A104),A105) -> 269482 | D105: =SUMIFS((D7:D104),(A7:A104),A105) -> 413467 | E105: =SUMIFS((E7:E104),(A7:A104),A105) -> 479221 | F105: =SUMIFS((F7:F104),(A7:A104),A105) -> 224758 | G105: -143985 | H105: -34,8%▼
A106: Hospitalsenhed Midt | G106: 0
A107: Hospitalsenhed Midt | B107: Skema 6.1: Center for voldsramte (Bispebjerg) | G107: 0
A108: Hospitalsenhed Midt | B108: Skema 6.2: Ventilatørbistand i hjemmet, respiratorpatienter | G108: 0
A109: Hospitalsenhed Midt | B109: Skema 6.3: Blodprøvetagning i eget hjem | C109: 1913 | D109: 1854 | E109: 1841 | F109: 1818 | G109: 59 | H109: 3,2%
A110: Hospitalsenhed Midt | B110: Skema 6.4: Psykinfo + pårørende | G110: 0
A111: Hospitalsenhed Midt | B111: Skema 6.5: Leveret udstyr til patienter i eget hjem, ilt og sonderemedier | C111: 6648 | D111: 6300 | E111: 4955 | F111: 5203 | G111: 348 | H111: 5,5%
A112: Hospitalsenhed Midt | B112: Skema 6.6: Montebello (Nordsjællands Hospitaler) | G112: 0
A113: Hospitalsenhed Midt | B113: Skema 6.7: Satspulje korrektioner mellem år | G113: 0
A114: Hospitalsenhed Midt | B114: Skema 6.8: Klinisk farmakologisk rådgivning af praksissektoren | G114: 0
A115: Hospitalsenhed Midt | B115: Skema 6.9: Tandregulering ifm. operation | G115: 0
A116: Hospitalsenhed Midt | B116: Skema 6.10: Giftlinjen | G116: 0
A117: Hospitalsenhed Midt | B117: Skema 6.11: Tjenestemandspensioner | G117: 0
A118: Hospitalsenhed Midt | B118: Skema 6.12: Art 4.6 Betalinger til staten | G118: 0
A119: Hospitalsenhed Midt | B119: Skema 6.13: Art 4.7 Betalinger til kommuner | C119: 1648 | D119: 1436 | E119: 1500 | G119: 212 | H119: 14,8%▲
A120: Hospitalsenhed Midt | B120: Skema 6.14: Art 4.8 Betalinger til andre regioner | C120: 2263 | D120: 8553 | E120: -1159 | F120: -1863 | G120: -6290 | H120: -73,5%▼
A121: Hospitalsenhed Midt | B121: Skema 6.15: Art 7.6 Betalinger fra staten | C121: -1 | D121: -1 | E121: -1 | F121: -2 | G121: 0 | H121: 0,0%
A122: Hospitalsenhed Midt | B122: Skema 6.16: Art 7.7 Betalinger fra kommuner | C122: -3939 | D122: -3898 | E122: -4406 | F122: -2292 | G122: -41 | H122: 1,1%
A123: Hospitalsenhed Midt | B123: Skema 6.17: Art 7.8 Betalinger fra andre regioner | C123: -144683 | D123: -168461 | E123: -140707 | F123: -138745 | G123: 23778 | H123: -14,1%▼
A124: Hospitalsenhed Midt | B124: Skema 6.18: Betalinger til selvejende, private og udenlandske sygehuse | G124: 0
A125: Hospitalsenhed Midt | B125: Skema 6.19: Dækningsafgift/ejendomsskat | C125: 10351 | D125: 7830 | E125: 3450 | F125: 10601 | G125: 2521 | H125: 32,2%▲
A126: Hospitalsenhed Midt | B126: Skema 6.20: Forsikringer/erstatninger | C126: 7576 | D126: 6316 | E126: 9441 | F126: 6633 | G126: 1260 | H126: 19,9%▲
A127: Hospitalsenhed Midt | B127: Skema 6.21: Vederlagsfri Lab. –ydelser og andre ydelser til praksissektoren | C127: 58728 | D127: 56801 | E127: 53774 | F127: 62570 | G127: 1927 | H127: 3,4%
A128: Hospitalsenhed Midt | B128: Skema 6.22: Patienttransport | D128: 0 | E128: 9 | G128: 0
A129: Hospitalsenhed Midt | B129: Skema 6.23: Serviceydelser til/fra andre institutioner eller sygehuse udenfor regionen | G129: 0
A130: Hospitalsenhed Midt | B130: Skema 6.24: Udgifter til eksternt finansierede forskning | C130: 1425 | D130: 1311 | E130: 2175 | F130: 1838 | G130: 114 | H130: 8,7%▲
A131: Hospitalsenhed Midt | B131: Skema 6.25: Forebyggelse rettet mod praksissektoren og kommuner | G131: 0
A132: Hospitalsenhed Midt | B132: Skema 6.26: Praksisreservelæger | C132: 17206 | D132: 16355 | E132: 15979 | F132: 15632 | G132: 851 | H132: 5,2%
A133: Hospitalsenhed Midt | B133: Skema 6.27: Præhospital | C133: 22576 | D133: 21737 | E133: 20879 | F133: 18026 | G133: 839 | H133: 3,9%
A134: Hospitalsenhed Midt | B134: Skema 6.28: Udgifter til Danske Regioner (Kontigent, MedCom, Fællesproj.) | G134: 0
A135: Hospitalsenhed Midt | B135: Skema 6.29: Hospice | C135: 833 | D135: 814 | E135: 671 | F135: 1009 | G135: =IF(ISERROR(C135- D135)=TRUE,"",C135 - D135) -> 19 | H135: =IF(ISERROR((((C135- D135)/D135)*100)=TRUE),"",IF((((C135- D135)/D135)*100)<-7,FIXED(((C135- D135)/D135)*100, 1,TRUE) &"%" & "▼",IF((((C135- D135)/D135)*100)>7,FIXED(((C135- D135)/D135)*100, 1,TRUE) &"%" &"▲",FIXED(((C135- D135)/D135)*100, 1,TRUE)&"%"))) -> 2,3%
A136: Hospitalsenhed Midt | B136: Skema 6.30: Konsulenter(Praksis) | C136: 717 | D136: 681 | F136: 650 | G136: 36 | H136: 5,3%
A137: Hospitalsenhed Midt | B137: Skema 6.31: Videnskabsetisk Komité | G137: 0
A138: Hospitalsenhed Midt | B138: Skema 6.32: Tolkebistand | C138: 1091 | D138: 973 | E138: 848 | F138: 802 | G138: 118 | H138: 12,1%▲
A139: Hospitalsenhed Midt | B139: Skema 6.33: Dansk Center for Partikelterapi | G139: 0
A140: Hospitalsenhed Midt | B140: Skema 6.34: Politisk organisation – overførte udgifter fra funktion 4.10.01, 4.10.02 og 4.10.04 | G140: 0
A141: Hospitalsenhed Midt | B141: Skema 6.35: Øvrige udgifter, Region Sjælland | G141: 0
A142: Hospitalsenhed Midt | B142: Skema 6.36: Sundhedsydelser ifm. specialsektor | G142: 0
A143: Hospitalsenhed Midt | B143: Skema 6.37: Udgifter til primær sundhed fra skema 2 | G143: 0
A144: Hospitalsenhed Midt | B144: Skema 6.38: Udgifter til primær sundhed fra skema 3 | G144: 0
A145: Hospitalsenhed Midt | B145: Skema 6.39: Særlige udgifter ifm. COVID-19 | C145: 8502 | D145: 151215 | E145: 194103 | F145: 88715 | G145: -142713 | H145: -94,4%▼
A146: Hospitalsenhed Midt | B146: Skema 6.40: Udleveret udstyr/tilbehør ifm. cochlear implantater | G146: 0
A147: Hospitalsenhed Midt | B147: Skema 6.41: Luxturna-behandling, Rigshospitalet | G147: 0
A148: Hospitalsenhed Midt | B148: Skema 6.42: Udleveret medicin | C148: 51803 | D148: 60606 | E148: 57817 | G148: -8803 | H148: -14,5%▼
A149: Hospitalsenhed Midt | B149: Skema 6.43: Udgifter ifm. sundhedsklynger | G149: 0
A150: Hospitalsenhed Midt | B150: Skema 6.44: Ukrainske patienter under særlov eller asyl | G150: 0
A151: Hospitalsenhed Midt | B151: Skema 6.45: Udgifter ifm. de særlige pladser i psykiatrien | G151: 0
A152: Hospitalsenhed Midt | B152: Skema 6.46: Sikringsafdelingen, Region Sjælland | G152: 0
A153: Hospitalsenhed Midt | B153: Skema 6.47: Øvrige (Kan kun benyttes efter aftale med Sundhedsdatastyrelsen) | G153: 0
A154: Hospitalsenhed Midt | B154: Lukkede poster (må kun bruges af Sundhedsdatastyrelsen) | G154: 0
A155: Hospitalsenhed Midt | B155: I alt | C155: =SUMIFS((C7:C154),(A7:A154),A155) -> 44657 | D155: =SUMIFS((D7:D154),(A7:A154),A155) -> 170422 | E155: =SUMIFS((E7:E154),(A7:A154),A155) -> 221169 | F155: =SUMIFS((F7:F154),(A7:A154),A155) -> 70595 | G155: -125765 | H155: -73,8%▼
A156: Århus Universitetshospital | G156: 0
A157: Århus Universitetshospital | B157: Skema 6.1: Center for voldsramte (Bispebjerg) | G157: 0
A158: Århus Universitetshospital | B158: Skema 6.2: Ventilatørbistand i hjemmet, respiratorpatienter | C158: 1015 | D158: 1033 | E158: 742 | F158: 648 | G158: -18 | H158: -1,7%
A159: Århus Universitetshospital | B159: Skema 6.3: Blodprøvetagning i eget hjem | G159: 0
A160: Århus Universitetshospital | B160: Skema 6.4: Psykinfo + pårørende | G160: 0
A161: Århus Universitetshospital | B161: Skema 6.5: Leveret udstyr til patienter i eget hjem, ilt og sonderemedier | C161: 1700 | D161: 2083 | E161: 1044 | F161: 1046 | G161: -383 | H161: -18,4%▼
A162: Århus Universitetshospital | B162: Skema 6.6: Montebello (Nordsjællands Hospitaler) | G162: 0
A163: Århus Universitetshospital | B163: Skema 6.7: Satspulje korrektioner mellem år | G163: 0
A164: Århus Universitetshospital | B164: Skema 6.8: Klinisk farmakologisk rådgivning af praksissektoren | C164: 13055 | D164: 11523 | E164: 11210 | F164: 12004 | G164: 1532 | H164: 13,3%▲
A165: Århus Universitetshospital | B165: Skema 6.9: Tandregulering ifm. operation | C165: 2079 | D165: 2127 | E165: 2386 | F165: 2490 | G165: -48 | H165: -2,3%
A166: Århus Universitetshospital | B166: Skema 6.10: Giftlinjen | G166: 0
A167: Århus Universitetshospital | B167: Skema 6.11: Tjenestemandspensioner | G167: 0
A168: Århus Universitetshospital | B168: Skema 6.12: Art 4.6 Betalinger til staten | G168: 0
A169: Århus Universitetshospital | B169: Skema 6.13: Art 4.7 Betalinger til kommuner | C169: 2542 | D169: 2455 | E169: 2303 | F169: 539 | G169: 87 | H169: 3,5%
A170: Århus Universitetshospital | B170: Skema 6.14: Art 4.8 Betalinger til andre regioner | C170: 308711 | D170: 301585 | E170: 256334 | F170: 206229 | G170: 7126 | H170: 2,4%
A171: Århus Universitetshospital | B171: Skema 6.15: Art 7.6 Betalinger fra staten | C171: -14774 | D171: -11072 | E171: -12313 | F171: -19854 | G171: -3702 | H171: 33,4%▲
A172: Århus Universitetshospital | B172: Skema 6.16: Art 7.7 Betalinger fra kommuner | C172: -9520 | D172: -8828 | E172: -8193 | F172: -7809 | G172: -692 | H172: 7,8%▲
A173: Århus Universitetshospital | B173: Skema 6.17: Art 7.8 Betalinger fra andre regioner | C173: -920124 | D173: -911499 | E173: -787187 | F173: -755484 | G173: -8625 | H173: 0,9%
A174: Århus Universitetshospital | B174: Skema 6.18: Betalinger til selvejende, private og udenlandske sygehuse | C174: 2135 | D174: 875 | E174: -3773 | F174: -2419 | G174: 1260 | H174: 144,0%▲
A175: Århus Universitetshospital | B175: Skema 6.19: Dækningsafgift/ejendomsskat | C175: 41921 | D175: 41884 | E175: 41807 | F175: 33761 | G175: 37 | H175: 0,1%
A176: Århus Universitetshospital | B176: Skema 6.20: Forsikringer/erstatninger | C176: 15401 | D176: 10223 | E176: 14957 | F176: 13685 | G176: 5178 | H176: 50,7%▲
A177: Århus Universitetshospital | B177: Skema 6.21: Vederlagsfri Lab. –ydelser og andre ydelser til praksissektoren | C177: 181942 | D177: 167812 | E177: 176170 | F177: 154436 | G177: 14130 | H177: 8,4%▲
A178: Århus Universitetshospital | B178: Skema 6.22: Patienttransport | C178: 1848 | D178: 1677 | E178: 1889 | F178: 1310 | G178: 171 | H178: 10,2%▲
A179: Århus Universitetshospital | B179: Skema 6.23: Serviceydelser til/fra andre institutioner eller sygehuse udenfor regionen | G179: 0
A180: Århus Universitetshospital | B180: Skema 6.24: Udgifter til eksternt finansierede forskning | C180: 28685 | D180: 27696 | E180: 26247 | F180: 19139 | G180: 989 | H180: 3,6%
A181: Århus Universitetshospital | B181: Skema 6.25: Forebyggelse rettet mod praksissektoren og kommuner | G181: 0
A182: Århus Universitetshospital | B182: Skema 6.26: Praksisreservelæger | C182: 19520 | D182: 18895 | E182: 18453 | F182: 17918 | G182: 625 | H182: 3,3%
A183: Århus Universitetshospital | B183: Skema 6.27: Præhospital | C183: 6170 | D183: 6144 | E183: 5932 | F183: 6343 | G183: 26 | H183: 0,4%
A184: Århus Universitetshospital | B184: Skema 6.28: Udgifter til Danske Regioner (Kontigent, MedCom, Fællesproj.) | G184: 0
A185: Århus Universitetshospital | B185: Skema 6.29: Hospice | G185: 0
A186: Århus Universitetshospital | B186: Skema 6.30: Konsulenter(Praksis) | C186: 1179 | D186: 1134 | E186: 1098 | F186: 993 | G186: 45 | H186: 4,0%
A187: Århus Universitetshospital | B187: Skema 6.31: Videnskabsetisk Komité | C187: 4 | D187: 26 | E187: -11 | F187: 18 | G187: -22 | H187: -84,6%▼
A188: Århus Universitetshospital | B188: Skema 6.32: Tolkebistand | C188: 3116 | D188: 2248 | E188: 2416 | F188: 2246 | G188: 868 | H188: 38,6%▲
A189: Århus Universitetshospital | B189: Skema 6.33: Dansk Center for Partikelterapi | D189: 119638 | E189: 109551 | F189: 103479 | G189: -119638 | H189: -100,0%▼
A190: Århus Universitetshospital | B190: Skema 6.34: Politisk organisation – overførte udgifter fra funktion 4.10.01, 4.10.02 og 4.10.04 | G190: 0
A191: Århus Universitetshospital | B191: Skema 6.35: Øvrige udgifter, Region Sjælland | G191: 0
A192: Århus Universitetshospital | B192: Skema 6.36: Sundhedsydelser ifm. specialsektor | G192: 0
A193: Århus Universitetshospital | B193: Skema 6.37: Udgifter til primær sundhed fra skema 2 | G193: 0
A194: Århus Universitetshospital | B194: Skema 6.38: Udgifter til primær sundhed fra skema 3 | G194: 0
A195: Århus Universitetshospital | B195: Skema 6.39: Særlige udgifter ifm. COVID-19 | C195: 2025 | D195: 261806 | E195: 332356 | F195: 211981 | G195: -259781 | H195: -99,2%▼
A196: Århus Universitetshospital | B196: Skema 6.40: Udleveret udstyr/tilbehør ifm. cochlear implantater | C196: 1832 | D196: 1715 | E196: 1700 | G196: 117 | H196: 6,8%
A197: Århus Universitetshospital | B197: Skema 6.41: Luxturna-behandling, Rigshospitalet | G197: 0
A198: Århus Universitetshospital | B198: Skema 6.42: Udleveret medicin | C198: 934014 | D198: 808342 | E198: 695717 | G198: 125672 | H198: 15,5%▲
A199: Århus Universitetshospital | B199: Skema 6.43: Udgifter ifm. sundhedsklynger | G199: =IF(ISERROR(C199- D199)=TRUE,"",C199 - D199) -> 0 | H199: =IF(ISERROR((((C199- D199)/D199)*100)=TRUE),"",IF((((C199- D199)/D199)*100)<-7,FIXED(((C199- D199)/D199)*100, 1,TRUE) &"%" & "▼",IF((((C199- D199)/D199)*100)>7,FIXED(((C199- D199)/D199)*100, 1,TRUE) &"%" &"▲",FIXED(((C199- D199)/D199)*100, 1,TRUE)&"%"))) -> 
A200: Århus Universitetshospital | B200: Skema 6.44: Ukrainske patienter under særlov eller asyl | C200: 3661 | D200: 3498 | G200: 163 | H200: 4,7%
A201: Århus Universitetshospital | B201: Skema 6.45: Udgifter ifm. de særlige pladser i psykiatrien | G201: 0
A202: Århus Universitetshospital | B202: Skema 6.46: Sikringsafdelingen, Region Sjælland | G202: 0
... 203 more rows

Sheet Skema 7
A1: Region Midtjylland, somatiske sygehuse.
B2: Skema 7: Vederlagsfrie ydelser mellem sygehusene. (1.000 kr.)
A5: Sygehus | B5: 2023 | D5: 2023 | E5: 2022 | G5: 2022 | H5: 2021 | J5: 2021 | K5: 2020 | M5: 2020
B6: Leverede | C6: Modtagne | D6: Lev. - Mod. | E6: Leverede | F6: Modtagne | G6: Lev. - Mod. | H6: Leverede | I6: Modtagne | J6: Lev. - Mod. | K6: Leverede | L6: Modtagne | M6: Lev. - Mod.
A7: Regionshospitalet Horsens | B7: 11812.981 | C7: 32459.97 | D7: =$B$7-$C$7 -> -20646.989 | E7: 11761.915 | F7: 28843.537 | G7: =$E$7-$F$7 -> -17081.622 | H7: 15980 | I7: 25937 | J7: =$H$7-$I$7 -> -9957 | K7: 11185 | L7: 21415 | M7: =$K$7-$L$7 -> -10230
A8: Regionshospitalet Gødstrup | B8: 5062.5 | C8: 64002.2 | D8: =$B$8-$C$8 -> -58939.7 | E8: 0 | F8: 66110.799 | G8: =$E$8-$F$8 -> -66110.799 | I8: 73537 | J8: =$H$8-$I$8 -> -73537 | K8: 0 | L8: 32577 | M8: =$K$8-$L$8 -> -32577
A9: Hospitalsenhed Midt | B9: 41419.948 | C9: 62950.05 | D9: =$B$9-$C$9 -> -21530.102 | E9: 47822.184 | F9: 53225.549 | G9: =$E$9-$F$9 -> -5403.365 | H9: 49693 | I9: 51805 | J9: =$H$9-$I$9 -> -2112 | K9: 4700 | L9: 46512 | M9: =$K$9-$L$9 -> -41812
A10: Århus Universitetshospital | B10: 197790.716 | C10: 23868.02 | D10: =$B$10-$C$10 -> 173922.696 | E10: 183361.245 | F10: 27091.383 | G10: =$E$10-$F$10 -> 156269.862 | H10: 193268 | I10: 29949 | J10: =$H$10-$I$10 -> 163319 | K10: 171667 | L10: 17649 | M10: =$K$10-$L$10 -> 154018
A11: Regionshospitalet Randers | B11: 15239.544 | C11: 46171.565 | D11: =$B$11-$C$11 -> -30932.021 | E11: 15221.299 | F11: 41516.722 | G11: =$E$11-$F$11 -> -26295.423 | H11: 14764 | I11: 41271 | J11: =$H$11-$I$11 -> -26507 | K11: 13845 | L11: 33584 | M11: =$K$11-$L$11 -> -19739
A12: Regionshospitalet Hammel Neurocenter | D12: =$B$12-$C$12 -> 0 | G12: =$E$12-$F$12 -> 0 | J12: =$H$12-$I$12 -> 0 | M12: =$K$12-$L$12 -> 0
A13: Øvrige i Region Midtjylland | D13: =$B$13-$C$13 -> 0 | G13: =$E$13-$F$13 -> 0 | J13: =$H$13-$I$13 -> 0 | M13: =$K$13-$L$13 -> 0
A14: Ikke fordelte udgifter Region Midt, somatik | D14: =$B$14-$C$14 -> 0 | G14: =$E$14-$F$14 -> 0 | J14: =$H$14-$I$14 -> 0 | M14: =$K$14-$L$14 -> 0
A15: I alt | B15: =SUM(B7:B14) -> 271325.689 | C15: =SUM(C7:C14) -> 229451.805 | D15: =SUM(D7:D14) -> 41873.884 | E15: =SUM(E7:E14) -> 258166.643 | F15: 216787.99 | G15: 41378.653 | H15: 273705 | I15: 222499 | J15: 51206 | K15: =SUM(K7:K14) -> 201397 | L15: 151737 | M15: 49660
A17: NB: Afstem med psykiatrien

Sheet Rapport
B2: Skema 1: Udgifter og indtægter på sygehusene/enhederne, eksklusiv omkostningssted 0001, Fælleskonto. (1.000 kr.)
C3: 2023 | D3: 2022 | E3: 2021 | F3: 2020
B4: Hovedart 1: Lønninger | C4: 11874006 | D4: 11931661 | E4: 11491591.6 | F4: 10651773
B5: Hovedart 2: Varekøb | C5: 2251743 | D5: 2317742 | E5: 2173140.712 | F5: 2082923
B6: Hovedart 4: Tjenesteydelser m.v. | C6: 1817459 | D6: 2010164 | E6: 1889023.715 | F6: 1607058
B7: Hovedart 5: Tilskud og overførsler | C7: 9138 | D7: 4100 | E7: 4012.606 | F7: 4050
B8: Hovedart 6: Finansudgifter | C8: 0 | D8: 0 | E8: 0 | F8: 0
B9: Hovedart 7: Indtægter | C9: -2223013 | D9: -2112321 | E9: -1935458.795 | F9: -1855828
B10: Hovedart 8: Finansindtægter | C10: 0 | D10: 0 | E10: 0 | F10: 0
B11: Hovedart 9: Interne udgifter og indtægter | C11: 2749590 | D11: 2715202 | E11: 2521560.762 | F11: 2343392
B12: I alt | C12: 16478923 | D12: 16866548 | E12: 16143870.6 | F12: 14833368
B14: Skema 2: Fællesudgifter og -indtægter vedrørende sygehusene. (1.000 kr.)
C15: 2023 | D15: 2022 | E15: 2021 | F15: 2020
B16: Hovedart 1: Lønninger | C16: 991258.22 | D16: 960811 | E16: 855672.566 | F16: 796636
B17: Hovedart 2: Varekøb | C17: 2543697.406 | D17: 3061203 | E17: 3114452.722 | F17: 2809488
B18: Hovedart 4: Tjenesteydelser m.v. | C18: 2042012.574 | D18: 3614745 | E18: 9221245.986 | F18: 2385626
B19: Hovedart 5: Tilskud og overførsler | C19: 222271.632 | D19: 187682 | E19: 193589.606 | F19: 154022
B20: Hovedart 6: Finansudgifter | C20: 0 | D20: 0 | E20: 0 | F20: 0
B21: Hovedart 7: Indtægter | C21: -747314.956 | D21: -3265421 | E21: -9061630.324 | F21: -635784
B22: Hovedart 8: Finansindtægter | C22: 0 | D22: 0 | E22: 0 | F22: -658400
B23: Hovedart 9: Interne udgifter og indtægter | C23: -2839902.657 | D23: -2744421 | E23: -2509571.288 | F23: -2399391
B24: I alt | C24: 2212022.219 | D24: 1814599 | E24: 1813759.268 | F24: 2452197
B26: Skema 3:Regionale fællesudgifter og -indtægter. (1.000 kr.)
C27: 2023 | D27: 2022 | E27: 2021 | F27: 2020
B28: 1.70.50: Andel af fællesudgifter | C28: 520099.811 | D28: 527519 | E28: 478724 | F28: 475614
B29: 1.60.40: Andel af central administration af sundhed (til og med 2019) | C29: 0 | D29: 0 | E29: 0 | F29: 0
B30: 1.60.41: Andel af øvrige udgifter og indtægter | C30: 36787.869 | D30: 41438 | E30: 40012 | F30: 42122
B31: 1.50.33: Andel af central administration af sundhed (ekskl. psykiatri) | C31: 0 | D31: 0 | E31: 0 | F31: 0
B32: 1.50.35: Administration af det psykiatriske område (kun central del) | C32: 0 | D32: 0 | E32: 0 | F32: 0
B33: I alt | C33: 556887.68 | D33: 568957 | E33: 518736 | F33: 517736
B35: Skema 4: Udgifter og indtægter til og fra psykiatriske afdelinger konteret på somatiske sygehuse. (1.000 kr.)
C36: 2023 | D36: 2022 | E36: 2021 | F36: 2020
B37: Korrektion | C37: 0 | D37: 0 | E37: 0 | F37: 0
B38: Lønudg. på psyk. afd.,somatiske sygehuse | C38: 0 | D38: 0 | E38: 0 | F38: 0
B39: Øvrige udg. til psyk. afd.,somatiske sygehuse | C39: 0 | D39: 0 | E39: 0 | F39: 0
B40: I alt | C40: 0 | D40: 0 | E40: 0 | F40: 0
B42: Skema 5: Leasing- og huslejeudgifter. (1.000 kr.)
C43: 2023 | D43: 2022 | E43: 2021 | F43: 2020
B44: Andre udgifter | C44: 0 | D44: 0 | E44: 0 | F44: 0
B45: Leasing- og lejeudgifter | C45: 69147 | D45: 49843 | E45: 166344 | F45: 196444
B46: Huslejeudgifter | C46: 56322 | D46: 40620 | E46: 32960 | F46: 34360
B47: I alt | C47: 125469 | D47: 90463 | E47: 199304 | F47: 230804
B49: Skema 6: Udgifter til andet end patientbehandling. (1.000 kr.)
C50: 2023 | D50: 2022 | E50: 2021 | F50: 2020
B51: Skema 6.1: Center for voldsramte (Bispebjerg) | C51: 0 | D51: 0 | E51: 0 | F51: 0
B52: Skema 6.2: Ventilatørbistand i hjemmet, respiratorpatienter | C52: 298198.135 | D52: 247349.058 | E52: 284472.503 | F52: 312171.1902
B53: Skema 6.3: Blodprøvetagning i eget hjem | C53: 4920.54 | D53: 5840 | E53: 4434 | F53: 5785
B54: Skema 6.4: Psykinfo + pårørende | C54: 0 | D54: 0 | E54: 0 | F54: 0
B55: Skema 6.5: Leveret udstyr til patienter i eget hjem, ilt og sonderemedier | C55: 24786 | D55: 23869 | E55: 18197 | F55: 18411
B56: Skema 6.6: Montebello (Nordsjællands Hospitaler) | C56: 0 | D56: 0 | E56: 0 | F56: 0
B57: Skema 6.7: Satspulje korrektioner mellem år | C57: 0 | D57: 0 | E57: 0 | F57: 0
B58: Skema 6.8: Klinisk farmakologisk rådgivning af praksissektoren | C58: 13055 | D58: 11523 | E58: 11210 | F58: 12004
B59: Skema 6.9: Tandregulering ifm. operation | C59: 2079 | D59: 2132 | E59: 2386 | F59: 2491
B60: Skema 6.10: Giftlinjen | C60: 0 | D60: 0 | E60: 0 | F60: 0
B61: Skema 6.11: Tjenestemandspensioner | C61: 138349.019 | D61: 135057.625 | E61: 132908.782 | F61: 131477.9606
B62: Skema 6.12: Art 4.6 Betalinger til staten | C62: 0 | D62: 0 | E62: 0 | F62: 0
B63: Skema 6.13: Art 4.7 Betalinger til kommuner | C63: 9468 | D63: 8725 | E63: 8858 | F63: 1967
B64: Skema 6.14: Art 4.8 Betalinger til andre regioner | C64: 631782.87 | D64: 684869.822 | E64: 493752.454 | F64: 545440.5259
B65: Skema 6.15: Art 7.6 Betalinger fra staten | C65: -15425 | D65: -11509 | E65: -12733 | F65: -20065
B66: Skema 6.16: Art 7.7 Betalinger fra kommuner | C66: -25853.295 | D66: -21110.595 | E66: -22238.804 | F66: -16778.506
B67: Skema 6.17: Art 7.8 Betalinger fra andre regioner | C67: -1069281.768 | D67: -1083783.973 | E67: -929771.081 | F67: -974172.895
B68: Skema 6.18: Betalinger til selvejende, private og udenlandske sygehuse | C68: 476954.887 | D68: 399527.167 | E68: 333814.059 | F68: 224901.7335
B69: Skema 6.19: Dækningsafgift/ejendomsskat | C69: 101823.317 | D69: 67492.676 | E69: 61754.537 | F69: 25642.39644
B70: Skema 6.20: Forsikringer/erstatninger | C70: 258523.587 | D70: 236705.931 | E70: 399891.883 | F70: 417865.2351
B71: Skema 6.21: Vederlagsfri Lab. –ydelser og andre ydelser til praksissektoren | C71: 335128 | D71: 320701 | E71: 300879 | F71: 299664
B72: Skema 6.22: Patienttransport | C72: 2398 | D72: 2564 | E72: 2978 | F72: 1787
B73: Skema 6.23: Serviceydelser til/fra andre institutioner eller sygehuse udenfor regionen | C73: 873.138 | D73: -7558.165 | E73: 13668.947 | F73: 1820.806
B74: Skema 6.24: Udgifter til eksternt finansierede forskning | C74: 32556.63 | D74: 30972.68 | E74: 31813.776 | F74: 24105.72402
B75: Skema 6.25: Forebyggelse rettet mod praksissektoren og kommuner | C75: 8286.988 | D75: 4175.48 | E75: 4216.563 | F75: 12353.55727
B76: Skema 6.26: Praksisreservelæger | C76: 177193.048 | D76: 166793.858 | E76: 159086.728 | F76: 148833.0532
B77: Skema 6.27: Præhospital | C77: 49004.823 | D77: 52828.089 | E77: 51789.754 | F77: 49313.54
B78: Skema 6.28: Udgifter til Danske Regioner (Kontigent, MedCom, Fællesproj.) | C78: 140072.122 | D78: 151022.335 | E78: 145515.065 | F78: 102465.084
B79: Skema 6.29: Hospice | C79: 86395.058 | D79: 84512.597 | E79: 79190.537 | F79: 78892.67364
B80: Skema 6.30: Konsulenter(Praksis) | C80: 7256 | D80: 6987 | E80: 6187 | F80: 6582
B81: Skema 6.31: Videnskabsetisk Komité | C81: 1090.008 | D81: 1086.692 | E81: 1025.274 | F81: 727.98025
B82: Skema 6.32: Tolkebistand | C82: 5154.336 | D82: 3716.942 | E82: 3682.782 | F82: 4156.53331
B83: Skema 6.33: Dansk Center for Partikelterapi | C83: -59251.847 | D83: 64063.127 | E83: 47528.114 | F83: 47411.787
B84: Skema 6.34: Politisk organisation – overførte udgifter fra funktion 4.10.01, 4.10.02 og 4.10.04 | C84: 10887.698 | D84: 11298.516 | E84: 11541.27 | F84: 9321.663131
B85: Skema 6.35: Øvrige udgifter, Region Sjælland | C85: 0 | D85: 0 | E85: 0 | F85: 0
B86: Skema 6.36: Sundhedsydelser ifm. specialsektor | C86: 24559.014 | D86: 15149.244 | E86: 0 | F86: 0
B87: Skema 6.37: Udgifter til primær sundhed fra skema 2 | C87: 43401.398 | D87: 34512.716 | E87: 34751.888 | F87: 40470.66794
B88: Skema 6.38: Udgifter til primær sundhed fra skema 3 | C88: 36787.869 | D88: 41438.011 | E88: 40011.632 | F88: 42122.282
B89: Skema 6.39: Særlige udgifter ifm. COVID-19 | C89: 21729 | D89: 452411.55 | E89: 510384.667 | F89: 679357.0174
B90: Skema 6.40: Udleveret udstyr/tilbehør ifm. cochlear implantater | C90: 1832 | D90: 1715 | E90: 1700 | F90: 0
B91: Skema 6.41: Luxturna-behandling, Rigshospitalet | C91: 0 | D91: 0 | E91: 0 | F91: 0
B92: Skema 6.42: Udleveret medicin | C92: 1190679 | D92: 1064212 | E92: 968773 | F92: 0
B93: Skema 6.43: Udgifter ifm. sundhedsklynger | C93: 0 | D93: 0 | E93: 0 | F93: 0
B94: Skema 6.44: Ukrainske patienter under særlov eller asyl | C94: 3661 | D94: 3498 | E94: 0 | F94: 0
B95: Skema 6.45: Udgifter ifm. de særlige pladser i psykiatrien | C95: 0 | D95: 0 | E95: 0 | F95: 0
B96: Skema 6.46: Sikringsafdelingen, Region Sjælland | C96: 0 | D96: 0 | E96: 0 | F96: 0
B97: Skema 6.47: Øvrige (Kan kun benyttes efter aftale med Sundhedsdatastyrelsen) | C97: 0 | D97: 0 | E97: 42453.891 | F97: 84637.52674
B98: Lukkede poster (må kun bruges af Sundhedsdatastyrelsen) | C98: 0 | D98: 0 | E98: 0 | F98: 0
B99: I alt | C99: 2969073.575 | D99: 3212788.383 | E99: 3244114.221 | F99: 2321163.537

Sheet Rapport SGH
A1: 2023 | B1: Skema 1 | C1: Skema 2 | D1: Skema 3 | E1: Skema 4 | F1: Skema 5 | G1: Skema 6 | H1: Skema 7 | I1: I alt
A2: Regionshospitalet Horsens | B2: 1212887 | C2: 37483 | D2: 25837 | E2: 0 | F2: 3215 | G2: 85982 | H2: -20646.989 | I2: =SUM(B2:D2)-SUM(E2:H2) -> 1207656.989
A3: Regionshospitalet Gødstrup | B3: 2861635 | C3: 82381 | D3: 56524 | E3: 0 | F3: 16308 | G3: 269482 | H3: -58939.7 | I3: =SUM(B3:D3)-SUM(E3:H3) -> 2773689.7
A4: Hospitalsenhed Midt | B4: 2777177 | C4: 90832 | D4: 62475 | E4: 0 | F4: 3931 | G4: 44657 | H4: -21530.102 | I4: 2903426.102
A5: Århus Universitetshospital | B5: 8288605 | C5: 257134 | D5: 175048 | E5: 0 | F5: 54988 | G5: 628137 | H5: 173922.696 | I5: 7863739.304
A6: Regionshospitalet Randers | B6: 1338619 | C6: 42030 | D6: 28972 | E6: 0 | F6: 31 | G6: 77618 | H6: -30932.021 | I6: 1362904.021
A7: Regionshospitalet Hammel Neurocenter | B7: 0 | C7: 0 | D7: 0 | E7: 0 | F7: 0 | G7: 0 | H7: 0 | I7: 0
A8: Øvrige i Region Midtjylland | B8: 0 | C8: 0 | D8: 0 | E8: 0 | F8: 0 | G8: 0 | H8: 0 | I8: 0
A9: Ikke fordelte udgifter og indtægter | B9: 0 | C9: 1702162.219 | D9: 208031.68 | E9: 0 | F9: 46996 | G9: 1863197.575 | H9: 0 | I9: 0.3240000005
A11: 2022
A12: Regionshospitalet Horsens | B12: 1287525 | C12: 40698 | D12: 27759 | E12: 0 | F12: 2395 | G12: 149686 | H12: -17081.622 | I12: =SUM(B12:D12)-SUM(E12:H12) -> 1220982.622
A13: Regionshospitalet Gødstrup | B13: 3095162 | C13: 89933 | D13: 62467 | E13: 0 | F13: 8149 | G13: 413467 | H13: -66110.799 | I13: 2892056.799
A14: Hospitalsenhed Midt | B14: 2834116 | C14: 94112 | D14: 64809 | E14: 0 | F14: 3123 | G14: 170422 | H14: -5403.365 | I14: 2824895.365
A15: Århus Universitetshospital | B15: 8259443 | C15: 260051 | D15: 174138 | E15: 0 | F15: 35916 | G15: 863020 | H15: 156269.862 | I15: 7638426.138
A16: Regionshospitalet Randers | B16: 1390302 | C16: 44038 | D16: 30301 | E16: 0 | F16: 34 | G16: 161789 | H16: -26295.423 | I16: 1329113.423
A17: Regionshospitalet Hammel Neurocenter | B17: 0 | C17: 0 | D17: 0 | E17: 0 | F17: 0 | G17: 0 | H17: 0 | I17: 0
A18: Øvrige i Region Midtjylland | B18: 0 | C18: 0 | D18: 0 | E18: 0 | F18: 0 | G18: 0 | H18: 0 | I18: 0
A19: Ikke fordelte udgifter og indtægter | B19: 0 | C19: 1285767 | D19: 209483 | E19: 0 | F19: 40846 | G19: 1454404.383 | H19: 0 | I19: -0.3829999999

Sheet Afstemning af ikke fordelte
A1: Afstemning af Ikke fordelte indtægter- og udgifter
A2: 1.000 kr. | B2: 2023
A3: Skema 1 | B3: 0
A4: Skema 2 | B4: 1702162.219
A5: Skema 3 | B5: 208031.68
A6: Skema 4 | B6: 0
A7: Skema 5 | B7: 46996
A8: Skema 6 | B8: 1863197.575
A9: 1+2+3-4-5-6 | B9: =+B3+B4+B5-B6-B7-B8 -> 0.3240000005

Sheet Afstemning øvrige region
A1: Afstemning af Øvrige i Region Midtjylland
A2: 1.000 kr. | B2: 2023
A3: Skema 1 | B3: 0
A4: Skema 2 | B4: 0
A5: Skema 3 | B5: 0
A6: Skema 4 | B6: 0
A7: Skema 5 | B7: 0
A8: Skema 6 | B8: 0
A9: 1+2+3-4-5-6 | B9: =+B3+B4+B5-B6-B7-B8 -> 0
